{"text_format":"1","workbook":"xlsx","n_sheets":6,"sheets":["UnBlock Instructions","1 - Info","2 - Refund Details","3 - Summary","Instructions","References"],"not_rendered":{"charts":0,"images":20,"macros":1,"external_links":0,"defined_names":64,"comments":0,"pivot_tables":0},"unopened":[],"bounds":{"document_bytes":16777216,"sheet_cells":100000,"rows_first":2000,"rows_last":500,"rows_between":2000,"halvings":0,"cell_chars":16384,"cell_head_chars":4096},"cells_cut":0,"cells_raw":0,"read":"whole","date_system":"1900"}

{"sheet":"UnBlock Instructions","index":0,"n_rows":24,"n_cols":7,"rows_kept":24,"cut":false,"hidden":true,"merged":[[21,6,22,13]]}
[]
[null,"  Please note: If you see this message about a \"SECURITY RISK\"…"]
[]
[]
[]
[]
[null,"  OR, if you see this message …"]
[]
[]
[]
[]
[]
[]
[]
[]
[]
[]
[]
[]
[]
[]
[null,"  Please watch this short, 2 minute video:",null,null,null,null,"Click HERE to watch Instruction Video"]
[]
[null,"  Or, follow this short \"cheat sheet\" to Unblock the Refund Request Form"]

{"sheet":"1 - Info","index":1,"n_rows":42,"n_cols":30,"rows_kept":42,"cut":false,"hidden":false,"merged":[[41,20,41,24],[4,1,4,32],[19,8,19,32],[26,8,26,15],[21,21,21,22],[28,8,28,32],[21,8,21,16],[21,23,21,27],[21,28,21,32],[21,17,21,20],[11,26,11,32],[13,8,13,32],[26,25,26,32],[11,8,11,14],[16,12,16,19],[16,25,16,32],[23,23,23,32],[24,23,24,32],[39,1,39,32],[31,1,32,7],[36,13,36,28],[36,29,36,32]]}
[]
[]
[]
[]
[null,"$2.00 Alberta Service Charge Refund Request Form"]
[]
[null,"Refund requests for the period January 1 until June 30 of the current calendar year are due "]
[null,"in the ABP office by July 31 for processing in August and will be paid by October 31.  "]
[null,"Refund request for the period July 1 until December 31 of the current calendar year are due"]
[null,"in the ABP office by January 31, for processing in February and will be paid by April 30."]
[]
[null,"Date of Request ",null,null,null,null,null,null,null,null,null,null,null,null,null,null,null,"Refund Period"]
[]
[null,"Name of Producer"]
[null,null,null,null,null,null,null,null,"Name of Company or Producer who paid the checkoff"]
[]
[null,"Contact Name",null,null,null,null,null,null,"First Name",null,null,null,null,null,null,null,null,null,null,null,null,"Last Name"]
[null,null,null,null,null,null,null,null,"(If a company or partnership, please specify the person authorized to sign on behalf of the company)"]
[]
[null,"Address"]
[]
[null,"Town, City",null,null,null,null,null,null,null,null,null,null,null,null,null,null,null,"  Province ",null,null,null,"AB",null,"Postal Code   "]
[]
[null,"County, Municipality, I.D. or Special Area of Residence"]
[null,"County, Municipality, I.D. or Special Area of Primary Operations "]
[]
[null,"Telephone Number"]
[]
[null,"E-mail Address"]
[]
[null,"I am predominantly a",null,null,null,null,null,null,null,null,"Cow Calf Producer",null,null,null,null,null,null,null,null,null,"Backgrounder"]
[null,"(select any that apply)"]
[null,null,null,null,null,null,null,null,null,null,"Feedlot",null,null,null,null,null,null,null,null,null,"Custom Feedlot"]
[]
[null,null,null,null,null,null,null,null,null,null,"Licenced Dealer",null,null,null,null,null,null,null,null,null,"Auction Market"]
[]
[null,null,null,null,null,null,null,null,null,null,"Other",null,null,null,null,null,null,null,null,null,null,null,null,null,null,null,null,null,null,{"$f":"IF(References!L12>0,\"(\" & References!L12 & \" checked)\",\"\")","v":""}]
[null,null,null,null,null,null,null,null,null,null,null,null,null,"(please describe here if other)"]
[]
[null,"Ready"]
[]
[null,null,null,null,null,null,null,null,null,null,null,null,null,null,null,null,null,null,null,"Step 1 Completion Status ",0]

{"sheet":"2 - Refund Details","index":2,"n_rows":3000,"n_cols":16,"rows_kept":3000,"cut":false,"hidden":false,"merged":[[4,3,4,5],[5,3,5,5],[8,10,8,15]]}
[]
[]
[null,null,null,null,"Completion Status for Page 1 - Info ",{"$f":"PercentCompletedStep1A","v":0},null,null,"          Working"]
[null,null,null,null,null,null,null,null,"          Columns"]
["ABP Detailed Refund Request",null,"Requested by ",{"$f":"GetProducerName(FirstName, LastName, NameOfProducer)","v":" "}]
[null,null,"Period",{"$f":"IF(RefundPeriod1=1,\"January to June\",\"July to December\")","v":"July to December"}]
[null,null,null,null,"(Total @ $2.00 / Head) ",{"$f":"I11*2","v":0}]
[]
[null,null,null,null,null,"ABP Checkoff",null,null,"# of Head",null,"Generic Working Columns, for your use, if Required"]
["Purchaser or Dealer","Document #","Date","# Head","% ","Paid",null,null,"when % Applied",null,"[Title 1]","[Title 2]","[Title 3]","[Title 4]","[Title 5]","[Title 6]"]
[null,null,null,{"$f":"SUM(D13:D5000)","v":0},null,{"$f":"SUM(F13:F5000)","v":0},null,null,{"$f":"SUM(I13:I5000)","v":0},null,{"$f":"SUM(K13:K5000)","v":0},0,0,0,0,0]
[]
[null,null,null,null,1,{"$f":"D13*E13*4.5","v":0},null,null,{"$f":"D13*E13","v":0}]
[null,null,null,null,1,0,null,null,0]
[null,null,null,null,1,0,null,null,0]
[null,null,null,null,1,0,null,null,0]
[null,null,null,null,1,0,null,null,0]
[null,null,null,null,1,0,null,null,0]
[null,null,null,null,1,0,null,null,0]
[null,null,null,null,1,0,null,null,0]
[null,null,null,null,1,0,null,null,0]
[null,null,null,null,1,0,null,null,0]
[null,null,null,null,1,0,null,null,0]
[null,null,null,null,1,0,null,null,0]
[null,null,null,null,1,0,null,null,0]
[null,null,null,null,1,0,null,null,0]
[null,null,null,null,1,0,null,null,0]
[null,null,null,null,1,0,null,null,0]
[null,null,null,null,1,0,null,null,0]
[null,null,null,null,1,0,null,null,0]
[null,null,null,null,1,0,null,null,0]
[null,null,null,null,1,{"$f":"D32*E32*4.5","v":0},null,null,0]
[null,null,null,null,1,0,null,null,0]
[null,null,null,null,1,0,null,null,0]
[null,null,null,null,1,0,null,null,0]
[null,null,null,null,1,0,null,null,0]
[null,null,null,null,1,0,null,null,0]
[null,null,null,null,1,0,null,null,0]
[null,null,null,null,1,0,null,null,0]
[null,null,null,null,1,0,null,null,0]
[null,null,null,null,1,0,null,null,0]
[null,null,null,null,1,0,null,null,0]
[null,null,null,null,1,0,null,null,0]
[null,null,null,null,1,0,null,null,0]
[null,null,null,null,1,{"$f":"D45*E45*4.5","v":0},null,null,{"$f":"D45*E45","v":0}]
[null,null,null,null,1,{"$f":"D46*E46*4.5","v":0},null,null,{"$f":"D46*E46","v":0}]
[null,null,null,null,1,{"$f":"D47*E47*4.5","v":0},null,null,{"$f":"D47*E47","v":0}]
[null,null,null,null,1,{"$f":"D48*E48*4.5","v":0},null,null,{"$f":"D48*E48","v":0}]
[null,null,null,null,1,{"$f":"D49*E49*4.5","v":0},null,null,{"$f":"D49*E49","v":0}]
[null,null,null,null,1,{"$f":"D50*E50*4.5","v":0},null,null,{"$f":"D50*E50","v":0}]
[null,null,null,null,1,0,null,null,0]
[null,null,null,null,1,0,null,null,0]
[null,null,null,null,1,0,null,null,0]
[null,null,null,null,1,0,null,null,0]
[null,null,null,null,1,0,null,null,0]
[null,null,null,null,1,0,null,null,0]
[null,null,null,null,1,0,null,null,0]
[null,null,null,null,1,0,null,null,0]
[null,null,null,null,1,0,null,null,0]
[null,null,null,null,1,0,null,null,0]
[null,null,null,null,1,0,null,null,0]
[null,null,null,null,1,0,null,null,0]
[null,null,null,null,1,0,null,null,0]
[null,null,null,null,1,0,null,null,0]
[null,null,null,null,1,0,null,null,0]
[null,null,null,null,1,0,null,null,0]
[null,null,null,null,1,0,null,null,0]
[null,null,null,null,1,0,null,null,0]
[null,null,null,null,1,0,null,null,0]
[null,null,null,null,1,0,null,null,0]
[null,null,null,null,1,0,null,null,0]
[null,null,null,null,1,0,null,null,0]
[null,null,null,null,1,0,null,null,0]
[null,null,null,null,1,0,null,null,0]
[null,null,null,null,1,0,null,null,0]
[null,null,null,null,1,0,null,null,0]
[null,null,null,null,1,0,null,null,0]
[null,null,null,null,1,0,null,null,0]
[null,null,null,null,1,0,null,null,0]
[null,null,null,null,1,0,null,null,0]
[null,null,null,null,1,0,null,null,0]
[null,null,null,null,1,0,null,null,0]
[null,null,null,null,1,0,null,null,0]
[null,null,null,null,1,0,null,null,0]
[null,null,null,null,1,0,null,null,0]
[null,null,null,null,1,0,null,null,0]
[null,null,null,null,1,0,null,null,0]
[null,null,null,null,1,0,null,null,0]
[null,null,null,null,1,0,null,null,0]
[null,null,null,null,1,0,null,null,0]
[null,null,null,null,1,0,null,null,0]
[null,null,null,null,1,0,null,null,0]
[null,null,null,null,1,0,null,null,0]
[null,null,null,null,1,0,null,null,0]
[null,null,null,null,1,0,null,null,0]
[null,null,null,null,1,0,null,null,0]
[null,null,null,null,1,0,null,null,0]
[null,null,null,null,1,0,null,null,0]
[null,null,null,null,1,0,null,null,0]
[null,null,null,null,1,0,null,null,0]
[null,null,null,null,1,0,null,null,0]
[null,null,null,null,1,0,null,null,0]
[null,null,null,null,1,0,null,null,0]
[null,null,null,null,1,0,null,null,0]
[null,null,null,null,1,0,null,null,0]
[null,null,null,null,1,0,null,null,0]
[null,null,null,null,1,0,null,null,0]
[null,null,null,null,1,0,null,null,0]
[null,null,null,null,1,0,null,null,0]
[null,null,null,null,1,0,null,null,0]
[null,null,null,null,1,0,null,null,0]
[null,null,null,null,1,0,null,null,0]
[null,null,null,null,1,0,null,null,0]
[null,null,null,null,1,{"$f":"D114*E114*4.5","v":0},null,null,{"$f":"D114*E114","v":0}]
[null,null,null,null,1,0,null,null,0]
[null,null,null,null,1,0,null,null,0]
[null,null,null,null,1,0,null,null,0]
[null,null,null,null,1,0,null,null,0]
[null,null,null,null,1,0,null,null,0]
[null,null,null,null,1,0,null,null,0]
[null,null,null,null,1,0,null,null,0]
[null,null,null,null,1,0,null,null,0]
[null,null,null,null,1,0,null,null,0]
[null,null,null,null,1,0,null,null,0]
[null,null,null,null,1,0,null,null,0]
[null,null,null,null,1,0,null,null,0]
[null,null,null,null,1,0,null,null,0]
[null,null,null,null,1,0,null,null,0]
[null,null,null,null,1,0,null,null,0]
[null,null,null,null,1,0,null,null,0]
[null,null,null,null,1,0,null,null,0]
[null,null,null,null,1,0,null,null,0]
[null,null,null,null,1,0,null,null,0]
[null,null,null,null,1,0,null,null,0]
[null,null,null,null,1,0,null,null,0]
[null,null,null,null,1,0,null,null,0]
[null,null,null,null,1,0,null,null,0]
[null,null,null,null,1,0,null,null,0]
[null,null,null,null,1,0,null,null,0]
[null,null,null,null,1,0,null,null,0]
[null,null,null,null,1,0,null,null,0]
[null,null,null,null,1,0,null,null,0]
[null,null,null,null,1,0,null,null,0]
[null,null,null,null,1,0,null,null,0]
[null,null,null,null,1,0,null,null,0]
[null,null,null,null,1,0,null,null,0]
[null,null,null,null,1,0,null,null,0]
[null,null,null,null,1,0,null,null,0]
[null,null,null,null,1,0,null,null,0]
[null,null,null,null,1,0,null,null,0]
[null,null,null,null,1,0,null,null,0]
[null,null,null,null,1,0,null,null,0]
[null,null,null,null,1,0,null,null,0]
[null,null,null,null,1,0,null,null,0]
[null,null,null,null,1,0,null,null,0]
[null,null,null,null,1,0,null,null,0]
[null,null,null,null,1,0,null,null,0]
[null,null,null,null,1,0,null,null,0]
[null,null,null,null,1,0,null,null,0]
[null,null,null,null,1,0,null,null,0]
[null,null,null,null,1,0,null,null,0]
[null,null,null,null,1,0,null,null,0]
[null,null,null,null,1,0,null,null,0]
[null,null,null,null,1,0,null,null,0]
[null,null,null,null,1,0,null,null,0]
[null,null,null,null,1,0,null,null,0]
[null,null,null,null,1,0,null,null,0]
[null,null,null,null,1,0,null,null,0]
[null,null,null,null,1,0,null,null,0]
[null,null,null,null,1,0,null,null,0]
[null,null,null,null,1,0,null,null,0]
[null,null,null,null,1,0,null,null,0]
[null,null,null,null,1,0,null,null,0]
[null,null,null,null,1,0,null,null,0]
[null,null,null,null,1,0,null,null,0]
[null,null,null,null,1,0,null,null,0]
[null,null,null,null,1,0,null,null,0]
[null,null,null,null,1,{"$f":"D178*E178*4.5","v":0},null,null,{"$f":"D178*E178","v":0}]
[null,null,null,null,1,0,null,null,0]
[null,null,null,null,1,0,null,null,0]
[null,null,null,null,1,0,null,null,0]
[null,null,null,null,1,0,null,null,0]
[null,null,null,null,1,0,null,null,0]
[null,null,null,null,1,0,null,null,0]
[null,null,null,null,1,0,null,null,0]
[null,null,null,null,1,0,null,null,0]
[null,null,null,null,1,0,null,null,0]
[null,null,null,null,1,0,null,null,0]
[null,null,null,null,1,0,null,null,0]
[null,null,null,null,1,0,null,null,0]
[null,null,null,null,1,0,null,null,0]
[null,null,null,null,1,0,null,null,0]
[null,null,null,null,1,0,null,null,0]
[null,null,null,null,1,0,null,null,0]
[null,null,null,null,1,0,null,null,0]
[null,null,null,null,1,0,null,null,0]
[null,null,null,null,1,0,null,null,0]
[null,null,null,null,1,0,null,null,0]
[null,null,null,null,1,0,null,null,0]
[null,null,null,null,1,0,null,null,0]
[null,null,null,null,1,0,null,null,0]
[null,null,null,null,1,0,null,null,0]
[null,null,null,null,1,0,null,null,0]
[null,null,null,null,1,0,null,null,0]
[null,null,null,null,1,0,null,null,0]
[null,null,null,null,1,0,null,null,0]
[null,null,null,null,1,0,null,null,0]
[null,null,null,null,1,0,null,null,0]
[null,null,null,null,1,0,null,null,0]
[null,null,null,null,1,0,null,null,0]
[null,null,null,null,1,0,null,null,0]
[null,null,null,null,1,0,null,null,0]
[null,null,null,null,1,0,null,null,0]
[null,null,null,null,1,0,null,null,0]
[null,null,null,null,1,0,null,null,0]
[null,null,null,null,1,0,null,null,0]
[null,null,null,null,1,0,null,null,0]
[null,null,null,null,1,0,null,null,0]
[null,null,null,null,1,0,null,null,0]
[null,null,null,null,1,0,null,null,0]
[null,null,null,null,1,0,null,null,0]
[null,null,null,null,1,0,null,null,0]
[null,null,null,null,1,0,null,null,0]
[null,null,null,null,1,0,null,null,0]
[null,null,null,null,1,0,null,null,0]
[null,null,null,null,1,0,null,null,0]
[null,null,null,null,1,0,null,null,0]
[null,null,null,null,1,0,null,null,0]
[null,null,null,null,1,0,null,null,0]
[null,null,null,null,1,0,null,null,0]
[null,null,null,null,1,0,null,null,0]
[null,null,null,null,1,0,null,null,0]
[null,null,null,null,1,0,null,null,0]
[null,null,null,null,1,0,null,null,0]
[null,null,null,null,1,0,null,null,0]
[null,null,null,null,1,0,null,null,0]
[null,null,null,null,1,0,null,null,0]
[null,null,null,null,1,0,null,null,0]
[null,null,null,null,1,0,null,null,0]
[null,null,null,null,1,0,null,null,0]
[null,null,null,null,1,0,null,null,0]
[null,null,null,null,1,{"$f":"D242*E242*4.5","v":0},null,null,{"$f":"D242*E242","v":0}]
[null,null,null,null,1,0,null,null,0]
[null,null,null,null,1,0,null,null,0]
[null,null,null,null,1,0,null,null,0]
[null,null,null,null,1,0,null,null,0]
[null,null,null,null,1,0,null,null,0]
[null,null,null,null,1,0,null,null,0]
[null,null,null,null,1,0,null,null,0]
[null,null,null,null,1,0,null,null,0]
[null,null,null,null,1,0,null,null,0]
[null,null,null,null,1,0,null,null,0]
[null,null,null,null,1,0,null,null,0]
[null,null,null,null,1,0,null,null,0]
[null,null,null,null,1,0,null,null,0]
[null,null,null,null,1,0,null,null,0]
[null,null,null,null,1,0,null,null,0]
[null,null,null,null,1,0,null,null,0]
[null,null,null,null,1,0,null,null,0]
[null,null,null,null,1,0,null,null,0]
[null,null,null,null,1,0,null,null,0]
[null,null,null,null,1,0,null,null,0]
[null,null,null,null,1,0,null,null,0]
[null,null,null,null,1,0,null,null,0]
[null,null,null,null,1,0,null,null,0]
[null,null,null,null,1,0,null,null,0]
[null,null,null,null,1,0,null,null,0]
[null,null,null,null,1,0,null,null,0]
[null,null,null,null,1,0,null,null,0]
[null,null,null,null,1,0,null,null,0]
[null,null,null,null,1,0,null,null,0]
[null,null,null,null,1,0,null,null,0]
[null,null,null,null,1,0,null,null,0]
[null,null,null,null,1,0,null,null,0]
[null,null,null,null,1,0,null,null,0]
[null,null,null,null,1,0,null,null,0]
[null,null,null,null,1,0,null,null,0]
[null,null,null,null,1,0,null,null,0]
[null,null,null,null,1,0,null,null,0]
[null,null,null,null,1,0,null,null,0]
[null,null,null,null,1,0,null,null,0]
[null,null,null,null,1,0,null,null,0]
[null,null,null,null,1,0,null,null,0]
[null,null,null,null,1,0,null,null,0]
[null,null,null,null,1,0,null,null,0]
[null,null,null,null,1,0,null,null,0]
[null,null,null,null,1,0,null,null,0]
[null,null,null,null,1,0,null,null,0]
[null,null,null,null,1,0,null,null,0]
[null,null,null,null,1,0,null,null,0]
[null,null,null,null,1,0,null,null,0]
[null,null,null,null,1,0,null,null,0]
[null,null,null,null,1,0,null,null,0]
[null,null,null,null,1,0,null,null,0]
[null,null,null,null,1,0,null,null,0]
[null,null,null,null,1,0,null,null,0]
[null,null,null,null,1,0,null,null,0]
[null,null,null,null,1,0,null,null,0]
[null,null,null,null,1,0,null,null,0]
[null,null,null,null,1,0,null,null,0]
[null,null,null,null,1,0,null,null,0]
[null,null,null,null,1,0,null,null,0]
[null,null,null,null,1,0,null,null,0]
[null,null,null,null,1,0,null,null,0]
[null,null,null,null,1,0,null,null,0]
[null,null,null,null,1,{"$f":"D306*E306*4.5","v":0},null,null,{"$f":"D306*E306","v":0}]
[null,null,null,null,1,0,null,null,0]
[null,null,null,null,1,0,null,null,0]
[null,null,null,null,1,0,null,null,0]
[null,null,null,null,1,0,null,null,0]
[null,null,null,null,1,0,null,null,0]
[null,null,null,null,1,0,null,null,0]
[null,null,null,null,1,0,null,null,0]
[null,null,null,null,1,0,null,null,0]
[null,null,null,null,1,0,null,null,0]
[null,null,null,null,1,0,null,null,0]
[null,null,null,null,1,0,null,null,0]
[null,null,null,null,1,0,null,null,0]
[null,null,null,null,1,0,null,null,0]
[null,null,null,null,1,0,null,null,0]
[null,null,null,null,1,0,null,null,0]
[null,null,null,null,1,0,null,null,0]
[null,null,null,null,1,0,null,null,0]
[null,null,null,null,1,0,null,null,0]
[null,null,null,null,1,0,null,null,0]
[null,null,null,null,1,0,null,null,0]
[null,null,null,null,1,0,null,null,0]
[null,null,null,null,1,0,null,null,0]
[null,null,null,null,1,0,null,null,0]
[null,null,null,null,1,0,null,null,0]
[null,null,null,null,1,0,null,null,0]
[null,null,null,null,1,0,null,null,0]
[null,null,null,null,1,0,null,null,0]
[null,null,null,null,1,0,null,null,0]
[null,null,null,null,1,0,null,null,0]
[null,null,null,null,1,0,null,null,0]
[null,null,null,null,1,0,null,null,0]
[null,null,null,null,1,0,null,null,0]
[null,null,null,null,1,0,null,null,0]
[null,null,null,null,1,0,null,null,0]
[null,null,null,null,1,0,null,null,0]
[null,null,null,null,1,0,null,null,0]
[null,null,null,null,1,0,null,null,0]
[null,null,null,null,1,0,null,null,0]
[null,null,null,null,1,0,null,null,0]
[null,null,null,null,1,0,null,null,0]
[null,null,null,null,1,0,null,null,0]
[null,null,null,null,1,0,null,null,0]
[null,null,null,null,1,0,null,null,0]
[null,null,null,null,1,0,null,null,0]
[null,null,null,null,1,0,null,null,0]
[null,null,null,null,1,0,null,null,0]
[null,null,null,null,1,0,null,null,0]
[null,null,null,null,1,0,null,null,0]
[null,null,null,null,1,0,null,null,0]
[null,null,null,null,1,0,null,null,0]
[null,null,null,null,1,0,null,null,0]
[null,null,null,null,1,0,null,null,0]
[null,null,null,null,1,0,null,null,0]
[null,null,null,null,1,0,null,null,0]
[null,null,null,null,1,0,null,null,0]
[null,null,null,null,1,0,null,null,0]
[null,null,null,null,1,0,null,null,0]
[null,null,null,null,1,0,null,null,0]
[null,null,null,null,1,0,null,null,0]
[null,null,null,null,1,0,null,null,0]
[null,null,null,null,1,0,null,null,0]
[null,null,null,null,1,0,null,null,0]
[null,null,null,null,1,0,null,null,0]
[null,null,null,null,1,{"$f":"D370*E370*4.5","v":0},null,null,{"$f":"D370*E370","v":0}]
[null,null,null,null,1,0,null,null,0]
[null,null,null,null,1,0,null,null,0]
[null,null,null,null,1,0,null,null,0]
[null,null,null,null,1,0,null,null,0]
[null,null,null,null,1,0,null,null,0]
[null,null,null,null,1,0,null,null,0]
[null,null,null,null,1,0,null,null,0]
[null,null,null,null,1,0,null,null,0]
[null,null,null,null,1,0,null,null,0]
[null,null,null,null,1,0,null,null,0]
[null,null,null,null,1,0,null,null,0]
[null,null,null,null,1,0,null,null,0]
[null,null,null,null,1,0,null,null,0]
[null,null,null,null,1,0,null,null,0]
[null,null,null,null,1,0,null,null,0]
[null,null,null,null,1,0,null,null,0]
[null,null,null,null,1,0,null,null,0]
[null,null,null,null,1,0,null,null,0]
[null,null,null,null,1,0,null,null,0]
[null,null,null,null,1,0,null,null,0]
[null,null,null,null,1,0,null,null,0]
[null,null,null,null,1,0,null,null,0]
[null,null,null,null,1,0,null,null,0]
[null,null,null,null,1,0,null,null,0]
[null,null,null,null,1,0,null,null,0]
[null,null,null,null,1,0,null,null,0]
[null,null,null,null,1,0,null,null,0]
[null,null,null,null,1,0,null,null,0]
[null,null,null,null,1,0,null,null,0]
[null,null,null,null,1,0,null,null,0]
[null,null,null,null,1,0,null,null,0]
[null,null,null,null,1,0,null,null,0]
[null,null,null,null,1,0,null,null,0]
[null,null,null,null,1,0,null,null,0]
[null,null,null,null,1,0,null,null,0]
[null,null,null,null,1,0,null,null,0]
[null,null,null,null,1,0,null,null,0]
[null,null,null,null,1,0,null,null,0]
[null,null,null,null,1,0,null,null,0]
[null,null,null,null,1,0,null,null,0]
[null,null,null,null,1,0,null,null,0]
[null,null,null,null,1,0,null,null,0]
[null,null,null,null,1,0,null,null,0]
[null,null,null,null,1,0,null,null,0]
[null,null,null,null,1,0,null,null,0]
[null,null,null,null,1,0,null,null,0]
[null,null,null,null,1,0,null,null,0]
[null,null,null,null,1,0,null,null,0]
[null,null,null,null,1,0,null,null,0]
[null,null,null,null,1,0,null,null,0]
[null,null,null,null,1,0,null,null,0]
[null,null,null,null,1,0,null,null,0]
[null,null,null,null,1,0,null,null,0]
[null,null,null,null,1,0,null,null,0]
[null,null,null,null,1,0,null,null,0]
[null,null,null,null,1,0,null,null,0]
[null,null,null,null,1,0,null,null,0]
[null,null,null,null,1,0,null,null,0]
[null,null,null,null,1,0,null,null,0]
[null,null,null,null,1,0,null,null,0]
[null,null,null,null,1,0,null,null,0]
[null,null,null,null,1,0,null,null,0]
[null,null,null,null,1,0,null,null,0]
[null,null,null,null,1,{"$f":"D434*E434*4.5","v":0},null,null,{"$f":"D434*E434","v":0}]
[null,null,null,null,1,0,null,null,0]
[null,null,null,null,1,0,null,null,0]
[null,null,null,null,1,0,null,null,0]
[null,null,null,null,1,0,null,null,0]
[null,null,null,null,1,0,null,null,0]
[null,null,null,null,1,0,null,null,0]
[null,null,null,null,1,0,null,null,0]
[null,null,null,null,1,0,null,null,0]
[null,null,null,null,1,0,null,null,0]
[null,null,null,null,1,0,null,null,0]
[null,null,null,null,1,0,null,null,0]
[null,null,null,null,1,0,null,null,0]
[null,null,null,null,1,0,null,null,0]
[null,null,null,null,1,0,null,null,0]
[null,null,null,null,1,0,null,null,0]
[null,null,null,null,1,0,null,null,0]
[null,null,null,null,1,0,null,null,0]
[null,null,null,null,1,0,null,null,0]
[null,null,null,null,1,0,null,null,0]
[null,null,null,null,1,0,null,null,0]
[null,null,null,null,1,0,null,null,0]
[null,null,null,null,1,0,null,null,0]
[null,null,null,null,1,0,null,null,0]
[null,null,null,null,1,0,null,null,0]
[null,null,null,null,1,0,null,null,0]
[null,null,null,null,1,0,null,null,0]
[null,null,null,null,1,0,null,null,0]
[null,null,null,null,1,0,null,null,0]
[null,null,null,null,1,0,null,null,0]
[null,null,null,null,1,0,null,null,0]
[null,null,null,null,1,0,null,null,0]
[null,null,null,null,1,0,null,null,0]
[null,null,null,null,1,0,null,null,0]
[null,null,null,null,1,0,null,null,0]
[null,null,null,null,1,0,null,null,0]
[null,null,null,null,1,0,null,null,0]
[null,null,null,null,1,0,null,null,0]
[null,null,null,null,1,0,null,null,0]
[null,null,null,null,1,0,null,null,0]
[null,null,null,null,1,0,null,null,0]
[null,null,null,null,1,0,null,null,0]
[null,null,null,null,1,0,null,null,0]
[null,null,null,null,1,0,null,null,0]
[null,null,null,null,1,0,null,null,0]
[null,null,null,null,1,0,null,null,0]
[null,null,null,null,1,0,null,null,0]
[null,null,null,null,1,0,null,null,0]
[null,null,null,null,1,0,null,null,0]
[null,null,null,null,1,0,null,null,0]
[null,null,null,null,1,0,null,null,0]
[null,null,null,null,1,0,null,null,0]
[null,null,null,null,1,0,null,null,0]
[null,null,null,null,1,0,null,null,0]
[null,null,null,null,1,0,null,null,0]
[null,null,null,null,1,0,null,null,0]
[null,null,null,null,1,0,null,null,0]
[null,null,null,null,1,0,null,null,0]
[null,null,null,null,1,0,null,null,0]
[null,null,null,null,1,0,null,null,0]
[null,null,null,null,1,0,null,null,0]
[null,null,null,null,1,0,null,null,0]
[null,null,null,null,1,0,null,null,0]
[null,null,null,null,1,0,null,null,0]
[null,null,null,null,1,{"$f":"D498*E498*4.5","v":0},null,null,{"$f":"D498*E498","v":0}]
[null,null,null,null,1,{"$f":"D499*E499*4.5","v":0},null,null,{"$f":"D499*E499","v":0}]
[null,null,null,null,1,{"$f":"D500*E500*4.5","v":0},null,null,{"$f":"D500*E500","v":0}]
[null,null,null,null,1,{"$f":"D501*E501*4.5","v":0},null,null,{"$f":"D501*E501","v":0}]
[null,null,null,null,1,{"$f":"D502*E502*4.5","v":0},null,null,{"$f":"D502*E502","v":0}]
[null,null,null,null,1,{"$f":"D503*E503*4.5","v":0},null,null,{"$f":"D503*E503","v":0}]
[null,null,null,null,1,0,null,null,0]
[null,null,null,null,1,0,null,null,0]
[null,null,null,null,1,0,null,null,0]
[null,null,null,null,1,0,null,null,0]
[null,null,null,null,1,0,null,null,0]
[null,null,null,null,1,0,null,null,0]
[null,null,null,null,1,0,null,null,0]
[null,null,null,null,1,0,null,null,0]
[null,null,null,null,1,0,null,null,0]
[null,null,null,null,1,0,null,null,0]
[null,null,null,null,1,0,null,null,0]
[null,null,null,null,1,0,null,null,0]
[null,null,null,null,1,0,null,null,0]
[null,null,null,null,1,0,null,null,0]
[null,null,null,null,1,0,null,null,0]
[null,null,null,null,1,0,null,null,0]
[null,null,null,null,1,0,null,null,0]
[null,null,null,null,1,0,null,null,0]
[null,null,null,null,1,0,null,null,0]
[null,null,null,null,1,0,null,null,0]
[null,null,null,null,1,0,null,null,0]
[null,null,null,null,1,0,null,null,0]
[null,null,null,null,1,0,null,null,0]
[null,null,null,null,1,0,null,null,0]
[null,null,null,null,1,0,null,null,0]
[null,null,null,null,1,0,null,null,0]
[null,null,null,null,1,0,null,null,0]
[null,null,null,null,1,0,null,null,0]
[null,null,null,null,1,0,null,null,0]
[null,null,null,null,1,0,null,null,0]
[null,null,null,null,1,0,null,null,0]
[null,null,null,null,1,0,null,null,0]
[null,null,null,null,1,0,null,null,0]
[null,null,null,null,1,0,null,null,0]
[null,null,null,null,1,0,null,null,0]
[null,null,null,null,1,0,null,null,0]
[null,null,null,null,1,0,null,null,0]
[null,null,null,null,1,0,null,null,0]
[null,null,null,null,1,0,null,null,0]
[null,null,null,null,1,0,null,null,0]
[null,null,null,null,1,0,null,null,0]
[null,null,null,null,1,0,null,null,0]
[null,null,null,null,1,0,null,null,0]
[null,null,null,null,1,0,null,null,0]
[null,null,null,null,1,0,null,null,0]
[null,null,null,null,1,0,null,null,0]
[null,null,null,null,1,0,null,null,0]
[null,null,null,null,1,0,null,null,0]
[null,null,null,null,1,0,null,null,0]
[null,null,null,null,1,0,null,null,0]
[null,null,null,null,1,0,null,null,0]
[null,null,null,null,1,0,null,null,0]
[null,null,null,null,1,0,null,null,0]
[null,null,null,null,1,0,null,null,0]
[null,null,null,null,1,0,null,null,0]
[null,null,null,null,1,0,null,null,0]
[null,null,null,null,1,0,null,null,0]
[null,null,null,null,1,0,null,null,0]
[null,null,null,null,1,0,null,null,0]
[null,null,null,null,1,0,null,null,0]
[null,null,null,null,1,0,null,null,0]
[null,null,null,null,1,0,null,null,0]
[null,null,null,null,1,0,null,null,0]
[null,null,null,null,1,{"$f":"D567*E567*4.5","v":0},null,null,{"$f":"D567*E567","v":0}]
[null,null,null,null,1,0,null,null,0]
[null,null,null,null,1,0,null,null,0]
[null,null,null,null,1,0,null,null,0]
[null,null,null,null,1,0,null,null,0]
[null,null,null,null,1,0,null,null,0]
[null,null,null,null,1,0,null,null,0]
[null,null,null,null,1,0,null,null,0]
[null,null,null,null,1,0,null,null,0]
[null,null,null,null,1,0,null,null,0]
[null,null,null,null,1,0,null,null,0]
[null,null,null,null,1,0,null,null,0]
[null,null,null,null,1,0,null,null,0]
[null,null,null,null,1,0,null,null,0]
[null,null,null,null,1,0,null,null,0]
[null,null,null,null,1,0,null,null,0]
[null,null,null,null,1,0,null,null,0]
[null,null,null,null,1,0,null,null,0]
[null,null,null,null,1,0,null,null,0]
[null,null,null,null,1,0,null,null,0]
[null,null,null,null,1,0,null,null,0]
[null,null,null,null,1,0,null,null,0]
[null,null,null,null,1,0,null,null,0]
[null,null,null,null,1,0,null,null,0]
[null,null,null,null,1,0,null,null,0]
[null,null,null,null,1,0,null,null,0]
[null,null,null,null,1,0,null,null,0]
[null,null,null,null,1,0,null,null,0]
[null,null,null,null,1,0,null,null,0]
[null,null,null,null,1,0,null,null,0]
[null,null,null,null,1,0,null,null,0]
[null,null,null,null,1,0,null,null,0]
[null,null,null,null,1,0,null,null,0]
[null,null,null,null,1,0,null,null,0]
[null,null,null,null,1,0,null,null,0]
[null,null,null,null,1,0,null,null,0]
[null,null,null,null,1,0,null,null,0]
[null,null,null,null,1,0,null,null,0]
[null,null,null,null,1,0,null,null,0]
[null,null,null,null,1,0,null,null,0]
[null,null,null,null,1,0,null,null,0]
[null,null,null,null,1,0,null,null,0]
[null,null,null,null,1,0,null,null,0]
[null,null,null,null,1,0,null,null,0]
[null,null,null,null,1,0,null,null,0]
[null,null,null,null,1,0,null,null,0]
[null,null,null,null,1,0,null,null,0]
[null,null,null,null,1,0,null,null,0]
[null,null,null,null,1,0,null,null,0]
[null,null,null,null,1,0,null,null,0]
[null,null,null,null,1,0,null,null,0]
[null,null,null,null,1,0,null,null,0]
[null,null,null,null,1,0,null,null,0]
[null,null,null,null,1,0,null,null,0]
[null,null,null,null,1,0,null,null,0]
[null,null,null,null,1,0,null,null,0]
[null,null,null,null,1,0,null,null,0]
[null,null,null,null,1,0,null,null,0]
[null,null,null,null,1,0,null,null,0]
[null,null,null,null,1,0,null,null,0]
[null,null,null,null,1,0,null,null,0]
[null,null,null,null,1,0,null,null,0]
[null,null,null,null,1,0,null,null,0]
[null,null,null,null,1,0,null,null,0]
[null,null,null,null,1,{"$f":"D631*E631*4.5","v":0},null,null,{"$f":"D631*E631","v":0}]
[null,null,null,null,1,0,null,null,0]
[null,null,null,null,1,0,null,null,0]
[null,null,null,null,1,0,null,null,0]
[null,null,null,null,1,0,null,null,0]
[null,null,null,null,1,0,null,null,0]
[null,null,null,null,1,0,null,null,0]
[null,null,null,null,1,0,null,null,0]
[null,null,null,null,1,0,null,null,0]
[null,null,null,null,1,0,null,null,0]
[null,null,null,null,1,0,null,null,0]
[null,null,null,null,1,0,null,null,0]
[null,null,null,null,1,0,null,null,0]
[null,null,null,null,1,0,null,null,0]
[null,null,null,null,1,0,null,null,0]
[null,null,null,null,1,0,null,null,0]
[null,null,null,null,1,0,null,null,0]
[null,null,null,null,1,0,null,null,0]
[null,null,null,null,1,0,null,null,0]
[null,null,null,null,1,0,null,null,0]
[null,null,null,null,1,0,null,null,0]
[null,null,null,null,1,0,null,null,0]
[null,null,null,null,1,0,null,null,0]
[null,null,null,null,1,0,null,null,0]
[null,null,null,null,1,0,null,null,0]
[null,null,null,null,1,0,null,null,0]
[null,null,null,null,1,0,null,null,0]
[null,null,null,null,1,0,null,null,0]
[null,null,null,null,1,0,null,null,0]
[null,null,null,null,1,0,null,null,0]
[null,null,null,null,1,0,null,null,0]
[null,null,null,null,1,0,null,null,0]
[null,null,null,null,1,0,null,null,0]
[null,null,null,null,1,0,null,null,0]
[null,null,null,null,1,0,null,null,0]
[null,null,null,null,1,0,null,null,0]
[null,null,null,null,1,0,null,null,0]
[null,null,null,null,1,0,null,null,0]
[null,null,null,null,1,0,null,null,0]
[null,null,null,null,1,0,null,null,0]
[null,null,null,null,1,0,null,null,0]
[null,null,null,null,1,0,null,null,0]
[null,null,null,null,1,0,null,null,0]
[null,null,null,null,1,0,null,null,0]
[null,null,null,null,1,0,null,null,0]
[null,null,null,null,1,0,null,null,0]
[null,null,null,null,1,0,null,null,0]
[null,null,null,null,1,0,null,null,0]
[null,null,null,null,1,0,null,null,0]
[null,null,null,null,1,0,null,null,0]
[null,null,null,null,1,0,null,null,0]
[null,null,null,null,1,0,null,null,0]
[null,null,null,null,1,0,null,null,0]
[null,null,null,null,1,0,null,null,0]
[null,null,null,null,1,0,null,null,0]
[null,null,null,null,1,0,null,null,0]
[null,null,null,null,1,0,null,null,0]
[null,null,null,null,1,0,null,null,0]
[null,null,null,null,1,0,null,null,0]
[null,null,null,null,1,0,null,null,0]
[null,null,null,null,1,0,null,null,0]
[null,null,null,null,1,0,null,null,0]
[null,null,null,null,1,0,null,null,0]
[null,null,null,null,1,0,null,null,0]
[null,null,null,null,1,{"$f":"D695*E695*4.5","v":0},null,null,{"$f":"D695*E695","v":0}]
[null,null,null,null,1,0,null,null,0]
[null,null,null,null,1,0,null,null,0]
[null,null,null,null,1,0,null,null,0]
[null,null,null,null,1,0,null,null,0]
[null,null,null,null,1,0,null,null,0]
[null,null,null,null,1,0,null,null,0]
[null,null,null,null,1,0,null,null,0]
[null,null,null,null,1,0,null,null,0]
[null,null,null,null,1,0,null,null,0]
[null,null,null,null,1,0,null,null,0]
[null,null,null,null,1,0,null,null,0]
[null,null,null,null,1,0,null,null,0]
[null,null,null,null,1,0,null,null,0]
[null,null,null,null,1,0,null,null,0]
[null,null,null,null,1,0,null,null,0]
[null,null,null,null,1,0,null,null,0]
[null,null,null,null,1,0,null,null,0]
[null,null,null,null,1,0,null,null,0]
[null,null,null,null,1,0,null,null,0]
[null,null,null,null,1,0,null,null,0]
[null,null,null,null,1,0,null,null,0]
[null,null,null,null,1,0,null,null,0]
[null,null,null,null,1,0,null,null,0]
[null,null,null,null,1,0,null,null,0]
[null,null,null,null,1,0,null,null,0]
[null,null,null,null,1,0,null,null,0]
[null,null,null,null,1,0,null,null,0]
[null,null,null,null,1,0,null,null,0]
[null,null,null,null,1,0,null,null,0]
[null,null,null,null,1,0,null,null,0]
[null,null,null,null,1,0,null,null,0]
[null,null,null,null,1,0,null,null,0]
[null,null,null,null,1,0,null,null,0]
[null,null,null,null,1,0,null,null,0]
[null,null,null,null,1,0,null,null,0]
[null,null,null,null,1,0,null,null,0]
[null,null,null,null,1,0,null,null,0]
[null,null,null,null,1,0,null,null,0]
[null,null,null,null,1,0,null,null,0]
[null,null,null,null,1,0,null,null,0]
[null,null,null,null,1,0,null,null,0]
[null,null,null,null,1,0,null,null,0]
[null,null,null,null,1,0,null,null,0]
[null,null,null,null,1,0,null,null,0]
[null,null,null,null,1,0,null,null,0]
[null,null,null,null,1,0,null,null,0]
[null,null,null,null,1,0,null,null,0]
[null,null,null,null,1,0,null,null,0]
[null,null,null,null,1,0,null,null,0]
[null,null,null,null,1,0,null,null,0]
[null,null,null,null,1,0,null,null,0]
[null,null,null,null,1,0,null,null,0]
[null,null,null,null,1,0,null,null,0]
[null,null,null,null,1,0,null,null,0]
[null,null,null,null,1,0,null,null,0]
[null,null,null,null,1,0,null,null,0]
[null,null,null,null,1,0,null,null,0]
[null,null,null,null,1,0,null,null,0]
[null,null,null,null,1,0,null,null,0]
[null,null,null,null,1,0,null,null,0]
[null,null,null,null,1,0,null,null,0]
[null,null,null,null,1,0,null,null,0]
[null,null,null,null,1,0,null,null,0]
[null,null,null,null,1,{"$f":"D759*E759*4.5","v":0},null,null,{"$f":"D759*E759","v":0}]
[null,null,null,null,1,0,null,null,0]
[null,null,null,null,1,0,null,null,0]
[null,null,null,null,1,0,null,null,0]
[null,null,null,null,1,0,null,null,0]
[null,null,null,null,1,0,null,null,0]
[null,null,null,null,1,0,null,null,0]
[null,null,null,null,1,0,null,null,0]
[null,null,null,null,1,0,null,null,0]
[null,null,null,null,1,0,null,null,0]
[null,null,null,null,1,0,null,null,0]
[null,null,null,null,1,0,null,null,0]
[null,null,null,null,1,0,null,null,0]
[null,null,null,null,1,0,null,null,0]
[null,null,null,null,1,0,null,null,0]
[null,null,null,null,1,0,null,null,0]
[null,null,null,null,1,0,null,null,0]
[null,null,null,null,1,0,null,null,0]
[null,null,null,null,1,0,null,null,0]
[null,null,null,null,1,0,null,null,0]
[null,null,null,null,1,0,null,null,0]
[null,null,null,null,1,0,null,null,0]
[null,null,null,null,1,0,null,null,0]
[null,null,null,null,1,0,null,null,0]
[null,null,null,null,1,0,null,null,0]
[null,null,null,null,1,0,null,null,0]
[null,null,null,null,1,0,null,null,0]
[null,null,null,null,1,0,null,null,0]
[null,null,null,null,1,0,null,null,0]
[null,null,null,null,1,0,null,null,0]
[null,null,null,null,1,0,null,null,0]
[null,null,null,null,1,0,null,null,0]
[null,null,null,null,1,0,null,null,0]
[null,null,null,null,1,0,null,null,0]
[null,null,null,null,1,0,null,null,0]
[null,null,null,null,1,0,null,null,0]
[null,null,null,null,1,0,null,null,0]
[null,null,null,null,1,0,null,null,0]
[null,null,null,null,1,0,null,null,0]
[null,null,null,null,1,0,null,null,0]
[null,null,null,null,1,0,null,null,0]
[null,null,null,null,1,0,null,null,0]
[null,null,null,null,1,0,null,null,0]
[null,null,null,null,1,0,null,null,0]
[null,null,null,null,1,0,null,null,0]
[null,null,null,null,1,0,null,null,0]
[null,null,null,null,1,0,null,null,0]
[null,null,null,null,1,0,null,null,0]
[null,null,null,null,1,0,null,null,0]
[null,null,null,null,1,0,null,null,0]
[null,null,null,null,1,0,null,null,0]
[null,null,null,null,1,0,null,null,0]
[null,null,null,null,1,0,null,null,0]
[null,null,null,null,1,0,null,null,0]
[null,null,null,null,1,0,null,null,0]
[null,null,null,null,1,0,null,null,0]
[null,null,null,null,1,0,null,null,0]
[null,null,null,null,1,0,null,null,0]
[null,null,null,null,1,0,null,null,0]
[null,null,null,null,1,0,null,null,0]
[null,null,null,null,1,0,null,null,0]
[null,null,null,null,1,0,null,null,0]
[null,null,null,null,1,0,null,null,0]
[null,null,null,null,1,0,null,null,0]
[null,null,null,null,1,{"$f":"D823*E823*4.5","v":0},null,null,{"$f":"D823*E823","v":0}]
[null,null,null,null,1,0,null,null,0]
[null,null,null,null,1,0,null,null,0]
[null,null,null,null,1,0,null,null,0]
[null,null,null,null,1,0,null,null,0]
[null,null,null,null,1,0,null,null,0]
[null,null,null,null,1,0,null,null,0]
[null,null,null,null,1,0,null,null,0]
[null,null,null,null,1,0,null,null,0]
[null,null,null,null,1,0,null,null,0]
[null,null,null,null,1,0,null,null,0]
[null,null,null,null,1,0,null,null,0]
[null,null,null,null,1,0,null,null,0]
[null,null,null,null,1,0,null,null,0]
[null,null,null,null,1,0,null,null,0]
[null,null,null,null,1,0,null,null,0]
[null,null,null,null,1,0,null,null,0]
[null,null,null,null,1,0,null,null,0]
[null,null,null,null,1,0,null,null,0]
[null,null,null,null,1,0,null,null,0]
[null,null,null,null,1,0,null,null,0]
[null,null,null,null,1,0,null,null,0]
[null,null,null,null,1,0,null,null,0]
[null,null,null,null,1,0,null,null,0]
[null,null,null,null,1,0,null,null,0]
[null,null,null,null,1,0,null,null,0]
[null,null,null,null,1,0,null,null,0]
[null,null,null,null,1,0,null,null,0]
[null,null,null,null,1,0,null,null,0]
[null,null,null,null,1,0,null,null,0]
[null,null,null,null,1,0,null,null,0]
[null,null,null,null,1,0,null,null,0]
[null,null,null,null,1,0,null,null,0]
[null,null,null,null,1,0,null,null,0]
[null,null,null,null,1,0,null,null,0]
[null,null,null,null,1,0,null,null,0]
[null,null,null,null,1,0,null,null,0]
[null,null,null,null,1,0,null,null,0]
[null,null,null,null,1,0,null,null,0]
[null,null,null,null,1,0,null,null,0]
[null,null,null,null,1,0,null,null,0]
[null,null,null,null,1,0,null,null,0]
[null,null,null,null,1,0,null,null,0]
[null,null,null,null,1,0,null,null,0]
[null,null,null,null,1,0,null,null,0]
[null,null,null,null,1,0,null,null,0]
[null,null,null,null,1,0,null,null,0]
[null,null,null,null,1,0,null,null,0]
[null,null,null,null,1,0,null,null,0]
[null,null,null,null,1,0,null,null,0]
[null,null,null,null,1,0,null,null,0]
[null,null,null,null,1,0,null,null,0]
[null,null,null,null,1,0,null,null,0]
[null,null,null,null,1,0,null,null,0]
[null,null,null,null,1,0,null,null,0]
[null,null,null,null,1,0,null,null,0]
[null,null,null,null,1,0,null,null,0]
[null,null,null,null,1,0,null,null,0]
[null,null,null,null,1,0,null,null,0]
[null,null,null,null,1,0,null,null,0]
[null,null,null,null,1,0,null,null,0]
[null,null,null,null,1,0,null,null,0]
[null,null,null,null,1,0,null,null,0]
[null,null,null,null,1,0,null,null,0]
[null,null,null,null,1,{"$f":"D887*E887*4.5","v":0},null,null,{"$f":"D887*E887","v":0}]
[null,null,null,null,1,0,null,null,0]
[null,null,null,null,1,0,null,null,0]
[null,null,null,null,1,0,null,null,0]
[null,null,null,null,1,0,null,null,0]
[null,null,null,null,1,0,null,null,0]
[null,null,null,null,1,0,null,null,0]
[null,null,null,null,1,0,null,null,0]
[null,null,null,null,1,0,null,null,0]
[null,null,null,null,1,0,null,null,0]
[null,null,null,null,1,0,null,null,0]
[null,null,null,null,1,0,null,null,0]
[null,null,null,null,1,0,null,null,0]
[null,null,null,null,1,0,null,null,0]
[null,null,null,null,1,0,null,null,0]
[null,null,null,null,1,0,null,null,0]
[null,null,null,null,1,0,null,null,0]
[null,null,null,null,1,0,null,null,0]
[null,null,null,null,1,0,null,null,0]
[null,null,null,null,1,0,null,null,0]
[null,null,null,null,1,0,null,null,0]
[null,null,null,null,1,0,null,null,0]
[null,null,null,null,1,0,null,null,0]
[null,null,null,null,1,0,null,null,0]
[null,null,null,null,1,0,null,null,0]
[null,null,null,null,1,0,null,null,0]
[null,null,null,null,1,0,null,null,0]
[null,null,null,null,1,0,null,null,0]
[null,null,null,null,1,0,null,null,0]
[null,null,null,null,1,0,null,null,0]
[null,null,null,null,1,0,null,null,0]
[null,null,null,null,1,0,null,null,0]
[null,null,null,null,1,0,null,null,0]
[null,null,null,null,1,0,null,null,0]
[null,null,null,null,1,0,null,null,0]
[null,null,null,null,1,0,null,null,0]
[null,null,null,null,1,0,null,null,0]
[null,null,null,null,1,0,null,null,0]
[null,null,null,null,1,0,null,null,0]
[null,null,null,null,1,0,null,null,0]
[null,null,null,null,1,0,null,null,0]
[null,null,null,null,1,0,null,null,0]
[null,null,null,null,1,0,null,null,0]
[null,null,null,null,1,0,null,null,0]
[null,null,null,null,1,0,null,null,0]
[null,null,null,null,1,0,null,null,0]
[null,null,null,null,1,0,null,null,0]
[null,null,null,null,1,0,null,null,0]
[null,null,null,null,1,0,null,null,0]
[null,null,null,null,1,0,null,null,0]
[null,null,null,null,1,0,null,null,0]
[null,null,null,null,1,0,null,null,0]
[null,null,null,null,1,0,null,null,0]
[null,null,null,null,1,0,null,null,0]
[null,null,null,null,1,0,null,null,0]
[null,null,null,null,1,0,null,null,0]
[null,null,null,null,1,0,null,null,0]
[null,null,null,null,1,0,null,null,0]
[null,null,null,null,1,0,null,null,0]
[null,null,null,null,1,0,null,null,0]
[null,null,null,null,1,0,null,null,0]
[null,null,null,null,1,0,null,null,0]
[null,null,null,null,1,0,null,null,0]
[null,null,null,null,1,0,null,null,0]
[null,null,null,null,1,{"$f":"D951*E951*4.5","v":0},null,null,{"$f":"D951*E951","v":0}]
[null,null,null,null,1,0,null,null,0]
[null,null,null,null,1,0,null,null,0]
[null,null,null,null,1,0,null,null,0]
[null,null,null,null,1,0,null,null,0]
[null,null,null,null,1,0,null,null,0]
[null,null,null,null,1,0,null,null,0]
[null,null,null,null,1,0,null,null,0]
[null,null,null,null,1,0,null,null,0]
[null,null,null,null,1,0,null,null,0]
[null,null,null,null,1,0,null,null,0]
[null,null,null,null,1,0,null,null,0]
[null,null,null,null,1,0,null,null,0]
[null,null,null,null,1,0,null,null,0]
[null,null,null,null,1,0,null,null,0]
[null,null,null,null,1,0,null,null,0]
[null,null,null,null,1,0,null,null,0]
[null,null,null,null,1,0,null,null,0]
[null,null,null,null,1,0,null,null,0]
[null,null,null,null,1,0,null,null,0]
[null,null,null,null,1,0,null,null,0]
[null,null,null,null,1,0,null,null,0]
[null,null,null,null,1,0,null,null,0]
[null,null,null,null,1,0,null,null,0]
[null,null,null,null,1,0,null,null,0]
[null,null,null,null,1,0,null,null,0]
[null,null,null,null,1,0,null,null,0]
[null,null,null,null,1,0,null,null,0]
[null,null,null,null,1,0,null,null,0]
[null,null,null,null,1,0,null,null,0]
[null,null,null,null,1,0,null,null,0]
[null,null,null,null,1,0,null,null,0]
[null,null,null,null,1,0,null,null,0]
[null,null,null,null,1,0,null,null,0]
[null,null,null,null,1,0,null,null,0]
[null,null,null,null,1,0,null,null,0]
[null,null,null,null,1,0,null,null,0]
[null,null,null,null,1,0,null,null,0]
[null,null,null,null,1,0,null,null,0]
[null,null,null,null,1,0,null,null,0]
[null,null,null,null,1,0,null,null,0]
[null,null,null,null,1,0,null,null,0]
[null,null,null,null,1,0,null,null,0]
[null,null,null,null,1,0,null,null,0]
[null,null,null,null,1,0,null,null,0]
[null,null,null,null,1,0,null,null,0]
[null,null,null,null,1,0,null,null,0]
[null,null,null,null,1,0,null,null,0]
[null,null,null,null,1,0,null,null,0]
[null,null,null,null,1,0,null,null,0]
[null,null,null,null,1,0,null,null,0]
[null,null,null,null,1,0,null,null,0]
[null,null,null,null,1,0,null,null,0]
[null,null,null,null,1,0,null,null,0]
[null,null,null,null,1,0,null,null,0]
[null,null,null,null,1,0,null,null,0]
[null,null,null,null,1,0,null,null,0]
[null,null,null,null,1,0,null,null,0]
[null,null,null,null,1,0,null,null,0]
[null,null,null,null,1,0,null,null,0]
[null,null,null,null,1,0,null,null,0]
[null,null,null,null,1,0,null,null,0]
[null,null,null,null,1,0,null,null,0]
[null,null,null,null,1,0,null,null,0]
[null,null,null,null,1,{"$f":"D1015*E1015*4.5","v":0},null,null,{"$f":"D1015*E1015","v":0}]
[null,null,null,null,1,0,null,null,0]
[null,null,null,null,1,0,null,null,0]
[null,null,null,null,1,0,null,null,0]
[null,null,null,null,1,0,null,null,0]
[null,null,null,null,1,0,null,null,0]
[null,null,null,null,1,0,null,null,0]
[null,null,null,null,1,0,null,null,0]
[null,null,null,null,1,0,null,null,0]
[null,null,null,null,1,0,null,null,0]
[null,null,null,null,1,0,null,null,0]
[null,null,null,null,1,0,null,null,0]
[null,null,null,null,1,0,null,null,0]
[null,null,null,null,1,0,null,null,0]
[null,null,null,null,1,0,null,null,0]
[null,null,null,null,1,0,null,null,0]
[null,null,null,null,1,0,null,null,0]
[null,null,null,null,1,0,null,null,0]
[null,null,null,null,1,0,null,null,0]
[null,null,null,null,1,0,null,null,0]
[null,null,null,null,1,0,null,null,0]
[null,null,null,null,1,0,null,null,0]
[null,null,null,null,1,0,null,null,0]
[null,null,null,null,1,0,null,null,0]
[null,null,null,null,1,0,null,null,0]
[null,null,null,null,1,0,null,null,0]
[null,null,null,null,1,0,null,null,0]
[null,null,null,null,1,0,null,null,0]
[null,null,null,null,1,0,null,null,0]
[null,null,null,null,1,0,null,null,0]
[null,null,null,null,1,0,null,null,0]
[null,null,null,null,1,0,null,null,0]
[null,null,null,null,1,0,null,null,0]
[null,null,null,null,1,0,null,null,0]
[null,null,null,null,1,0,null,null,0]
[null,null,null,null,1,0,null,null,0]
[null,null,null,null,1,0,null,null,0]
[null,null,null,null,1,0,null,null,0]
[null,null,null,null,1,0,null,null,0]
[null,null,null,null,1,0,null,null,0]
[null,null,null,null,1,0,null,null,0]
[null,null,null,null,1,0,null,null,0]
[null,null,null,null,1,0,null,null,0]
[null,null,null,null,1,0,null,null,0]
[null,null,null,null,1,0,null,null,0]
[null,null,null,null,1,0,null,null,0]
[null,null,null,null,1,0,null,null,0]
[null,null,null,null,1,0,null,null,0]
[null,null,null,null,1,0,null,null,0]
[null,null,null,null,1,0,null,null,0]
[null,null,null,null,1,0,null,null,0]
[null,null,null,null,1,0,null,null,0]
[null,null,null,null,1,0,null,null,0]
[null,null,null,null,1,0,null,null,0]
[null,null,null,null,1,0,null,null,0]
[null,null,null,null,1,0,null,null,0]
[null,null,null,null,1,0,null,null,0]
[null,null,null,null,1,0,null,null,0]
[null,null,null,null,1,0,null,null,0]
[null,null,null,null,1,0,null,null,0]
[null,null,null,null,1,0,null,null,0]
[null,null,null,null,1,0,null,null,0]
[null,null,null,null,1,0,null,null,0]
[null,null,null,null,1,0,null,null,0]
[null,null,null,null,1,{"$f":"D1079*E1079*4.5","v":0},null,null,{"$f":"D1079*E1079","v":0}]
[null,null,null,null,1,0,null,null,0]
[null,null,null,null,1,0,null,null,0]
[null,null,null,null,1,0,null,null,0]
[null,null,null,null,1,0,null,null,0]
[null,null,null,null,1,0,null,null,0]
[null,null,null,null,1,0,null,null,0]
[null,null,null,null,1,0,null,null,0]
[null,null,null,null,1,0,null,null,0]
[null,null,null,null,1,0,null,null,0]
[null,null,null,null,1,0,null,null,0]
[null,null,null,null,1,0,null,null,0]
[null,null,null,null,1,0,null,null,0]
[null,null,null,null,1,0,null,null,0]
[null,null,null,null,1,0,null,null,0]
[null,null,null,null,1,0,null,null,0]
[null,null,null,null,1,0,null,null,0]
[null,null,null,null,1,0,null,null,0]
[null,null,null,null,1,0,null,null,0]
[null,null,null,null,1,0,null,null,0]
[null,null,null,null,1,0,null,null,0]
[null,null,null,null,1,0,null,null,0]
[null,null,null,null,1,0,null,null,0]
[null,null,null,null,1,0,null,null,0]
[null,null,null,null,1,0,null,null,0]
[null,null,null,null,1,0,null,null,0]
[null,null,null,null,1,0,null,null,0]
[null,null,null,null,1,0,null,null,0]
[null,null,null,null,1,0,null,null,0]
[null,null,null,null,1,0,null,null,0]
[null,null,null,null,1,0,null,null,0]
[null,null,null,null,1,0,null,null,0]
[null,null,null,null,1,0,null,null,0]
[null,null,null,null,1,0,null,null,0]
[null,null,null,null,1,0,null,null,0]
[null,null,null,null,1,0,null,null,0]
[null,null,null,null,1,0,null,null,0]
[null,null,null,null,1,0,null,null,0]
[null,null,null,null,1,0,null,null,0]
[null,null,null,null,1,0,null,null,0]
[null,null,null,null,1,0,null,null,0]
[null,null,null,null,1,0,null,null,0]
[null,null,null,null,1,0,null,null,0]
[null,null,null,null,1,0,null,null,0]
[null,null,null,null,1,0,null,null,0]
[null,null,null,null,1,0,null,null,0]
[null,null,null,null,1,0,null,null,0]
[null,null,null,null,1,0,null,null,0]
[null,null,null,null,1,0,null,null,0]
[null,null,null,null,1,0,null,null,0]
[null,null,null,null,1,0,null,null,0]
[null,null,null,null,1,0,null,null,0]
[null,null,null,null,1,0,null,null,0]
[null,null,null,null,1,0,null,null,0]
[null,null,null,null,1,0,null,null,0]
[null,null,null,null,1,0,null,null,0]
[null,null,null,null,1,0,null,null,0]
[null,null,null,null,1,0,null,null,0]
[null,null,null,null,1,0,null,null,0]
[null,null,null,null,1,0,null,null,0]
[null,null,null,null,1,0,null,null,0]
[null,null,null,null,1,0,null,null,0]
[null,null,null,null,1,0,null,null,0]
[null,null,null,null,1,0,null,null,0]
[null,null,null,null,1,{"$f":"D1143*E1143*4.5","v":0},null,null,{"$f":"D1143*E1143","v":0}]
[null,null,null,null,1,0,null,null,0]
[null,null,null,null,1,0,null,null,0]
[null,null,null,null,1,0,null,null,0]
[null,null,null,null,1,0,null,null,0]
[null,null,null,null,1,0,null,null,0]
[null,null,null,null,1,0,null,null,0]
[null,null,null,null,1,0,null,null,0]
[null,null,null,null,1,0,null,null,0]
[null,null,null,null,1,0,null,null,0]
[null,null,null,null,1,0,null,null,0]
[null,null,null,null,1,0,null,null,0]
[null,null,null,null,1,0,null,null,0]
[null,null,null,null,1,0,null,null,0]
[null,null,null,null,1,0,null,null,0]
[null,null,null,null,1,0,null,null,0]
[null,null,null,null,1,0,null,null,0]
[null,null,null,null,1,0,null,null,0]
[null,null,null,null,1,0,null,null,0]
[null,null,null,null,1,0,null,null,0]
[null,null,null,null,1,0,null,null,0]
[null,null,null,null,1,0,null,null,0]
[null,null,null,null,1,0,null,null,0]
[null,null,null,null,1,0,null,null,0]
[null,null,null,null,1,0,null,null,0]
[null,null,null,null,1,0,null,null,0]
[null,null,null,null,1,0,null,null,0]
[null,null,null,null,1,0,null,null,0]
[null,null,null,null,1,0,null,null,0]
[null,null,null,null,1,0,null,null,0]
[null,null,null,null,1,0,null,null,0]
[null,null,null,null,1,0,null,null,0]
[null,null,null,null,1,0,null,null,0]
[null,null,null,null,1,0,null,null,0]
[null,null,null,null,1,0,null,null,0]
[null,null,null,null,1,0,null,null,0]
[null,null,null,null,1,0,null,null,0]
[null,null,null,null,1,0,null,null,0]
[null,null,null,null,1,0,null,null,0]
[null,null,null,null,1,0,null,null,0]
[null,null,null,null,1,0,null,null,0]
[null,null,null,null,1,0,null,null,0]
[null,null,null,null,1,0,null,null,0]
[null,null,null,null,1,0,null,null,0]
[null,null,null,null,1,0,null,null,0]
[null,null,null,null,1,0,null,null,0]
[null,null,null,null,1,0,null,null,0]
[null,null,null,null,1,0,null,null,0]
[null,null,null,null,1,0,null,null,0]
[null,null,null,null,1,0,null,null,0]
[null,null,null,null,1,0,null,null,0]
[null,null,null,null,1,0,null,null,0]
[null,null,null,null,1,0,null,null,0]
[null,null,null,null,1,0,null,null,0]
[null,null,null,null,1,0,null,null,0]
[null,null,null,null,1,0,null,null,0]
[null,null,null,null,1,0,null,null,0]
[null,null,null,null,1,0,null,null,0]
[null,null,null,null,1,0,null,null,0]
[null,null,null,null,1,0,null,null,0]
[null,null,null,null,1,0,null,null,0]
[null,null,null,null,1,0,null,null,0]
[null,null,null,null,1,0,null,null,0]
[null,null,null,null,1,0,null,null,0]
[null,null,null,null,1,{"$f":"D1207*E1207*4.5","v":0},null,null,{"$f":"D1207*E1207","v":0}]
[null,null,null,null,1,0,null,null,0]
[null,null,null,null,1,0,null,null,0]
[null,null,null,null,1,0,null,null,0]
[null,null,null,null,1,0,null,null,0]
[null,null,null,null,1,0,null,null,0]
[null,null,null,null,1,0,null,null,0]
[null,null,null,null,1,0,null,null,0]
[null,null,null,null,1,0,null,null,0]
[null,null,null,null,1,0,null,null,0]
[null,null,null,null,1,0,null,null,0]
[null,null,null,null,1,0,null,null,0]
[null,null,null,null,1,0,null,null,0]
[null,null,null,null,1,0,null,null,0]
[null,null,null,null,1,0,null,null,0]
[null,null,null,null,1,0,null,null,0]
[null,null,null,null,1,0,null,null,0]
[null,null,null,null,1,0,null,null,0]
[null,null,null,null,1,0,null,null,0]
[null,null,null,null,1,0,null,null,0]
[null,null,null,null,1,0,null,null,0]
[null,null,null,null,1,0,null,null,0]
[null,null,null,null,1,0,null,null,0]
[null,null,null,null,1,0,null,null,0]
[null,null,null,null,1,0,null,null,0]
[null,null,null,null,1,0,null,null,0]
[null,null,null,null,1,0,null,null,0]
[null,null,null,null,1,0,null,null,0]
[null,null,null,null,1,0,null,null,0]
[null,null,null,null,1,0,null,null,0]
[null,null,null,null,1,0,null,null,0]
[null,null,null,null,1,0,null,null,0]
[null,null,null,null,1,0,null,null,0]
[null,null,null,null,1,0,null,null,0]
[null,null,null,null,1,0,null,null,0]
[null,null,null,null,1,0,null,null,0]
[null,null,null,null,1,0,null,null,0]
[null,null,null,null,1,0,null,null,0]
[null,null,null,null,1,0,null,null,0]
[null,null,null,null,1,0,null,null,0]
[null,null,null,null,1,0,null,null,0]
[null,null,null,null,1,0,null,null,0]
[null,null,null,null,1,0,null,null,0]
[null,null,null,null,1,0,null,null,0]
[null,null,null,null,1,0,null,null,0]
[null,null,null,null,1,0,null,null,0]
[null,null,null,null,1,0,null,null,0]
[null,null,null,null,1,0,null,null,0]
[null,null,null,null,1,0,null,null,0]
[null,null,null,null,1,0,null,null,0]
[null,null,null,null,1,0,null,null,0]
[null,null,null,null,1,0,null,null,0]
[null,null,null,null,1,0,null,null,0]
[null,null,null,null,1,0,null,null,0]
[null,null,null,null,1,0,null,null,0]
[null,null,null,null,1,0,null,null,0]
[null,null,null,null,1,0,null,null,0]
[null,null,null,null,1,0,null,null,0]
[null,null,null,null,1,0,null,null,0]
[null,null,null,null,1,0,null,null,0]
[null,null,null,null,1,0,null,null,0]
[null,null,null,null,1,0,null,null,0]
[null,null,null,null,1,0,null,null,0]
[null,null,null,null,1,0,null,null,0]
[null,null,null,null,1,{"$f":"D1271*E1271*4.5","v":0},null,null,{"$f":"D1271*E1271","v":0}]
[null,null,null,null,1,0,null,null,0]
[null,null,null,null,1,0,null,null,0]
[null,null,null,null,1,0,null,null,0]
[null,null,null,null,1,0,null,null,0]
[null,null,null,null,1,0,null,null,0]
[null,null,null,null,1,0,null,null,0]
[null,null,null,null,1,0,null,null,0]
[null,null,null,null,1,0,null,null,0]
[null,null,null,null,1,0,null,null,0]
[null,null,null,null,1,0,null,null,0]
[null,null,null,null,1,0,null,null,0]
[null,null,null,null,1,0,null,null,0]
[null,null,null,null,1,0,null,null,0]
[null,null,null,null,1,0,null,null,0]
[null,null,null,null,1,0,null,null,0]
[null,null,null,null,1,0,null,null,0]
[null,null,null,null,1,0,null,null,0]
[null,null,null,null,1,0,null,null,0]
[null,null,null,null,1,0,null,null,0]
[null,null,null,null,1,0,null,null,0]
[null,null,null,null,1,0,null,null,0]
[null,null,null,null,1,0,null,null,0]
[null,null,null,null,1,0,null,null,0]
[null,null,null,null,1,0,null,null,0]
[null,null,null,null,1,0,null,null,0]
[null,null,null,null,1,0,null,null,0]
[null,null,null,null,1,0,null,null,0]
[null,null,null,null,1,0,null,null,0]
[null,null,null,null,1,0,null,null,0]
[null,null,null,null,1,0,null,null,0]
[null,null,null,null,1,0,null,null,0]
[null,null,null,null,1,0,null,null,0]
[null,null,null,null,1,0,null,null,0]
[null,null,null,null,1,0,null,null,0]
[null,null,null,null,1,0,null,null,0]
[null,null,null,null,1,0,null,null,0]
[null,null,null,null,1,0,null,null,0]
[null,null,null,null,1,0,null,null,0]
[null,null,null,null,1,0,null,null,0]
[null,null,null,null,1,0,null,null,0]
[null,null,null,null,1,0,null,null,0]
[null,null,null,null,1,0,null,null,0]
[null,null,null,null,1,0,null,null,0]
[null,null,null,null,1,0,null,null,0]
[null,null,null,null,1,0,null,null,0]
[null,null,null,null,1,0,null,null,0]
[null,null,null,null,1,0,null,null,0]
[null,null,null,null,1,0,null,null,0]
[null,null,null,null,1,0,null,null,0]
[null,null,null,null,1,0,null,null,0]
[null,null,null,null,1,0,null,null,0]
[null,null,null,null,1,0,null,null,0]
[null,null,null,null,1,0,null,null,0]
[null,null,null,null,1,0,null,null,0]
[null,null,null,null,1,0,null,null,0]
[null,null,null,null,1,0,null,null,0]
[null,null,null,null,1,0,null,null,0]
[null,null,null,null,1,0,null,null,0]
[null,null,null,null,1,0,null,null,0]
[null,null,null,null,1,0,null,null,0]
[null,null,null,null,1,0,null,null,0]
[null,null,null,null,1,0,null,null,0]
[null,null,null,null,1,0,null,null,0]
[null,null,null,null,1,{"$f":"D1335*E1335*4.5","v":0},null,null,{"$f":"D1335*E1335","v":0}]
[null,null,null,null,1,0,null,null,0]
[null,null,null,null,1,0,null,null,0]
[null,null,null,null,1,0,null,null,0]
[null,null,null,null,1,0,null,null,0]
[null,null,null,null,1,0,null,null,0]
[null,null,null,null,1,0,null,null,0]
[null,null,null,null,1,0,null,null,0]
[null,null,null,null,1,0,null,null,0]
[null,null,null,null,1,0,null,null,0]
[null,null,null,null,1,0,null,null,0]
[null,null,null,null,1,0,null,null,0]
[null,null,null,null,1,0,null,null,0]
[null,null,null,null,1,0,null,null,0]
[null,null,null,null,1,0,null,null,0]
[null,null,null,null,1,0,null,null,0]
[null,null,null,null,1,0,null,null,0]
[null,null,null,null,1,0,null,null,0]
[null,null,null,null,1,0,null,null,0]
[null,null,null,null,1,0,null,null,0]
[null,null,null,null,1,0,null,null,0]
[null,null,null,null,1,0,null,null,0]
[null,null,null,null,1,0,null,null,0]
[null,null,null,null,1,0,null,null,0]
[null,null,null,null,1,0,null,null,0]
[null,null,null,null,1,0,null,null,0]
[null,null,null,null,1,0,null,null,0]
[null,null,null,null,1,0,null,null,0]
[null,null,null,null,1,0,null,null,0]
[null,null,null,null,1,0,null,null,0]
[null,null,null,null,1,0,null,null,0]
[null,null,null,null,1,0,null,null,0]
[null,null,null,null,1,0,null,null,0]
[null,null,null,null,1,0,null,null,0]
[null,null,null,null,1,0,null,null,0]
[null,null,null,null,1,0,null,null,0]
[null,null,null,null,1,0,null,null,0]
[null,null,null,null,1,0,null,null,0]
[null,null,null,null,1,0,null,null,0]
[null,null,null,null,1,0,null,null,0]
[null,null,null,null,1,0,null,null,0]
[null,null,null,null,1,0,null,null,0]
[null,null,null,null,1,0,null,null,0]
[null,null,null,null,1,0,null,null,0]
[null,null,null,null,1,0,null,null,0]
[null,null,null,null,1,0,null,null,0]
[null,null,null,null,1,0,null,null,0]
[null,null,null,null,1,0,null,null,0]
[null,null,null,null,1,0,null,null,0]
[null,null,null,null,1,0,null,null,0]
[null,null,null,null,1,0,null,null,0]
[null,null,null,null,1,0,null,null,0]
[null,null,null,null,1,0,null,null,0]
[null,null,null,null,1,0,null,null,0]
[null,null,null,null,1,0,null,null,0]
[null,null,null,null,1,0,null,null,0]
[null,null,null,null,1,0,null,null,0]
[null,null,null,null,1,0,null,null,0]
[null,null,null,null,1,0,null,null,0]
[null,null,null,null,1,0,null,null,0]
[null,null,null,null,1,0,null,null,0]
[null,null,null,null,1,0,null,null,0]
[null,null,null,null,1,0,null,null,0]
[null,null,null,null,1,0,null,null,0]
[null,null,null,null,1,{"$f":"D1399*E1399*4.5","v":0},null,null,{"$f":"D1399*E1399","v":0}]
[null,null,null,null,1,0,null,null,0]
[null,null,null,null,1,0,null,null,0]
[null,null,null,null,1,0,null,null,0]
[null,null,null,null,1,0,null,null,0]
[null,null,null,null,1,0,null,null,0]
[null,null,null,null,1,0,null,null,0]
[null,null,null,null,1,0,null,null,0]
[null,null,null,null,1,0,null,null,0]
[null,null,null,null,1,0,null,null,0]
[null,null,null,null,1,0,null,null,0]
[null,null,null,null,1,0,null,null,0]
[null,null,null,null,1,0,null,null,0]
[null,null,null,null,1,0,null,null,0]
[null,null,null,null,1,0,null,null,0]
[null,null,null,null,1,0,null,null,0]
[null,null,null,null,1,0,null,null,0]
[null,null,null,null,1,0,null,null,0]
[null,null,null,null,1,0,null,null,0]
[null,null,null,null,1,0,null,null,0]
[null,null,null,null,1,0,null,null,0]
[null,null,null,null,1,0,null,null,0]
[null,null,null,null,1,0,null,null,0]
[null,null,null,null,1,0,null,null,0]
[null,null,null,null,1,0,null,null,0]
[null,null,null,null,1,0,null,null,0]
[null,null,null,null,1,0,null,null,0]
[null,null,null,null,1,0,null,null,0]
[null,null,null,null,1,0,null,null,0]
[null,null,null,null,1,0,null,null,0]
[null,null,null,null,1,0,null,null,0]
[null,null,null,null,1,0,null,null,0]
[null,null,null,null,1,0,null,null,0]
[null,null,null,null,1,0,null,null,0]
[null,null,null,null,1,0,null,null,0]
[null,null,null,null,1,0,null,null,0]
[null,null,null,null,1,0,null,null,0]
[null,null,null,null,1,0,null,null,0]
[null,null,null,null,1,0,null,null,0]
[null,null,null,null,1,0,null,null,0]
[null,null,null,null,1,0,null,null,0]
[null,null,null,null,1,0,null,null,0]
[null,null,null,null,1,0,null,null,0]
[null,null,null,null,1,0,null,null,0]
[null,null,null,null,1,0,null,null,0]
[null,null,null,null,1,0,null,null,0]
[null,null,null,null,1,0,null,null,0]
[null,null,null,null,1,0,null,null,0]
[null,null,null,null,1,0,null,null,0]
[null,null,null,null,1,0,null,null,0]
[null,null,null,null,1,0,null,null,0]
[null,null,null,null,1,0,null,null,0]
[null,null,null,null,1,0,null,null,0]
[null,null,null,null,1,0,null,null,0]
[null,null,null,null,1,0,null,null,0]
[null,null,null,null,1,0,null,null,0]
[null,null,null,null,1,0,null,null,0]
[null,null,null,null,1,0,null,null,0]
[null,null,null,null,1,0,null,null,0]
[null,null,null,null,1,0,null,null,0]
[null,null,null,null,1,0,null,null,0]
[null,null,null,null,1,0,null,null,0]
[null,null,null,null,1,0,null,null,0]
[null,null,null,null,1,0,null,null,0]
[null,null,null,null,1,{"$f":"D1463*E1463*4.5","v":0},null,null,{"$f":"D1463*E1463","v":0}]
[null,null,null,null,1,0,null,null,0]
[null,null,null,null,1,0,null,null,0]
[null,null,null,null,1,0,null,null,0]
[null,null,null,null,1,0,null,null,0]
[null,null,null,null,1,0,null,null,0]
[null,null,null,null,1,0,null,null,0]
[null,null,null,null,1,0,null,null,0]
[null,null,null,null,1,0,null,null,0]
[null,null,null,null,1,0,null,null,0]
[null,null,null,null,1,0,null,null,0]
[null,null,null,null,1,0,null,null,0]
[null,null,null,null,1,0,null,null,0]
[null,null,null,null,1,0,null,null,0]
[null,null,null,null,1,0,null,null,0]
[null,null,null,null,1,0,null,null,0]
[null,null,null,null,1,0,null,null,0]
[null,null,null,null,1,0,null,null,0]
[null,null,null,null,1,0,null,null,0]
[null,null,null,null,1,0,null,null,0]
[null,null,null,null,1,0,null,null,0]
[null,null,null,null,1,0,null,null,0]
[null,null,null,null,1,0,null,null,0]
[null,null,null,null,1,0,null,null,0]
[null,null,null,null,1,0,null,null,0]
[null,null,null,null,1,0,null,null,0]
[null,null,null,null,1,0,null,null,0]
[null,null,null,null,1,0,null,null,0]
[null,null,null,null,1,0,null,null,0]
[null,null,null,null,1,0,null,null,0]
[null,null,null,null,1,0,null,null,0]
[null,null,null,null,1,0,null,null,0]
[null,null,null,null,1,0,null,null,0]
[null,null,null,null,1,0,null,null,0]
[null,null,null,null,1,0,null,null,0]
[null,null,null,null,1,0,null,null,0]
[null,null,null,null,1,0,null,null,0]
[null,null,null,null,1,0,null,null,0]
[null,null,null,null,1,0,null,null,0]
[null,null,null,null,1,0,null,null,0]
[null,null,null,null,1,0,null,null,0]
[null,null,null,null,1,0,null,null,0]
[null,null,null,null,1,0,null,null,0]
[null,null,null,null,1,0,null,null,0]
[null,null,null,null,1,0,null,null,0]
[null,null,null,null,1,0,null,null,0]
[null,null,null,null,1,0,null,null,0]
[null,null,null,null,1,0,null,null,0]
[null,null,null,null,1,0,null,null,0]
[null,null,null,null,1,0,null,null,0]
[null,null,null,null,1,0,null,null,0]
[null,null,null,null,1,0,null,null,0]
[null,null,null,null,1,0,null,null,0]
[null,null,null,null,1,0,null,null,0]
[null,null,null,null,1,0,null,null,0]
[null,null,null,null,1,0,null,null,0]
[null,null,null,null,1,0,null,null,0]
[null,null,null,null,1,0,null,null,0]
[null,null,null,null,1,0,null,null,0]
[null,null,null,null,1,0,null,null,0]
[null,null,null,null,1,0,null,null,0]
[null,null,null,null,1,0,null,null,0]
[null,null,null,null,1,0,null,null,0]
[null,null,null,null,1,0,null,null,0]
[null,null,null,null,1,{"$f":"D1527*E1527*4.5","v":0},null,null,{"$f":"D1527*E1527","v":0}]
[null,null,null,null,1,0,null,null,0]
[null,null,null,null,1,0,null,null,0]
[null,null,null,null,1,0,null,null,0]
[null,null,null,null,1,0,null,null,0]
[null,null,null,null,1,0,null,null,0]
[null,null,null,null,1,0,null,null,0]
[null,null,null,null,1,0,null,null,0]
[null,null,null,null,1,0,null,null,0]
[null,null,null,null,1,0,null,null,0]
[null,null,null,null,1,0,null,null,0]
[null,null,null,null,1,0,null,null,0]
[null,null,null,null,1,0,null,null,0]
[null,null,null,null,1,0,null,null,0]
[null,null,null,null,1,0,null,null,0]
[null,null,null,null,1,0,null,null,0]
[null,null,null,null,1,0,null,null,0]
[null,null,null,null,1,0,null,null,0]
[null,null,null,null,1,0,null,null,0]
[null,null,null,null,1,0,null,null,0]
[null,null,null,null,1,0,null,null,0]
[null,null,null,null,1,0,null,null,0]
[null,null,null,null,1,0,null,null,0]
[null,null,null,null,1,0,null,null,0]
[null,null,null,null,1,0,null,null,0]
[null,null,null,null,1,0,null,null,0]
[null,null,null,null,1,0,null,null,0]
[null,null,null,null,1,0,null,null,0]
[null,null,null,null,1,0,null,null,0]
[null,null,null,null,1,0,null,null,0]
[null,null,null,null,1,0,null,null,0]
[null,null,null,null,1,0,null,null,0]
[null,null,null,null,1,0,null,null,0]
[null,null,null,null,1,0,null,null,0]
[null,null,null,null,1,0,null,null,0]
[null,null,null,null,1,0,null,null,0]
[null,null,null,null,1,0,null,null,0]
[null,null,null,null,1,0,null,null,0]
[null,null,null,null,1,0,null,null,0]
[null,null,null,null,1,0,null,null,0]
[null,null,null,null,1,0,null,null,0]
[null,null,null,null,1,0,null,null,0]
[null,null,null,null,1,0,null,null,0]
[null,null,null,null,1,0,null,null,0]
[null,null,null,null,1,0,null,null,0]
[null,null,null,null,1,0,null,null,0]
[null,null,null,null,1,0,null,null,0]
[null,null,null,null,1,0,null,null,0]
[null,null,null,null,1,0,null,null,0]
[null,null,null,null,1,0,null,null,0]
[null,null,null,null,1,0,null,null,0]
[null,null,null,null,1,0,null,null,0]
[null,null,null,null,1,0,null,null,0]
[null,null,null,null,1,0,null,null,0]
[null,null,null,null,1,0,null,null,0]
[null,null,null,null,1,0,null,null,0]
[null,null,null,null,1,0,null,null,0]
[null,null,null,null,1,0,null,null,0]
[null,null,null,null,1,0,null,null,0]
[null,null,null,null,1,0,null,null,0]
[null,null,null,null,1,0,null,null,0]
[null,null,null,null,1,0,null,null,0]
[null,null,null,null,1,0,null,null,0]
[null,null,null,null,1,0,null,null,0]
[null,null,null,null,1,{"$f":"D1591*E1591*4.5","v":0},null,null,{"$f":"D1591*E1591","v":0}]
[null,null,null,null,1,0,null,null,0]
[null,null,null,null,1,0,null,null,0]
[null,null,null,null,1,0,null,null,0]
[null,null,null,null,1,0,null,null,0]
[null,null,null,null,1,0,null,null,0]
[null,null,null,null,1,0,null,null,0]
[null,null,null,null,1,0,null,null,0]
[null,null,null,null,1,0,null,null,0]
[null,null,null,null,1,0,null,null,0]
[null,null,null,null,1,0,null,null,0]
[null,null,null,null,1,0,null,null,0]
[null,null,null,null,1,0,null,null,0]
[null,null,null,null,1,0,null,null,0]
[null,null,null,null,1,0,null,null,0]
[null,null,null,null,1,0,null,null,0]
[null,null,null,null,1,0,null,null,0]
[null,null,null,null,1,0,null,null,0]
[null,null,null,null,1,0,null,null,0]
[null,null,null,null,1,0,null,null,0]
[null,null,null,null,1,0,null,null,0]
[null,null,null,null,1,0,null,null,0]
[null,null,null,null,1,0,null,null,0]
[null,null,null,null,1,0,null,null,0]
[null,null,null,null,1,0,null,null,0]
[null,null,null,null,1,0,null,null,0]
[null,null,null,null,1,0,null,null,0]
[null,null,null,null,1,0,null,null,0]
[null,null,null,null,1,0,null,null,0]
[null,null,null,null,1,0,null,null,0]
[null,null,null,null,1,0,null,null,0]
[null,null,null,null,1,0,null,null,0]
[null,null,null,null,1,0,null,null,0]
[null,null,null,null,1,0,null,null,0]
[null,null,null,null,1,0,null,null,0]
[null,null,null,null,1,0,null,null,0]
[null,null,null,null,1,0,null,null,0]
[null,null,null,null,1,0,null,null,0]
[null,null,null,null,1,0,null,null,0]
[null,null,null,null,1,0,null,null,0]
[null,null,null,null,1,0,null,null,0]
[null,null,null,null,1,0,null,null,0]
[null,null,null,null,1,0,null,null,0]
[null,null,null,null,1,0,null,null,0]
[null,null,null,null,1,0,null,null,0]
[null,null,null,null,1,0,null,null,0]
[null,null,null,null,1,0,null,null,0]
[null,null,null,null,1,0,null,null,0]
[null,null,null,null,1,0,null,null,0]
[null,null,null,null,1,0,null,null,0]
[null,null,null,null,1,0,null,null,0]
[null,null,null,null,1,0,null,null,0]
[null,null,null,null,1,0,null,null,0]
[null,null,null,null,1,0,null,null,0]
[null,null,null,null,1,0,null,null,0]
[null,null,null,null,1,0,null,null,0]
[null,null,null,null,1,0,null,null,0]
[null,null,null,null,1,0,null,null,0]
[null,null,null,null,1,0,null,null,0]
[null,null,null,null,1,0,null,null,0]
[null,null,null,null,1,0,null,null,0]
[null,null,null,null,1,0,null,null,0]
[null,null,null,null,1,0,null,null,0]
[null,null,null,null,1,0,null,null,0]
[null,null,null,null,1,{"$f":"D1655*E1655*4.5","v":0},null,null,{"$f":"D1655*E1655","v":0}]
[null,null,null,null,1,0,null,null,0]
[null,null,null,null,1,0,null,null,0]
[null,null,null,null,1,0,null,null,0]
[null,null,null,null,1,0,null,null,0]
[null,null,null,null,1,0,null,null,0]
[null,null,null,null,1,0,null,null,0]
[null,null,null,null,1,0,null,null,0]
[null,null,null,null,1,0,null,null,0]
[null,null,null,null,1,0,null,null,0]
[null,null,null,null,1,0,null,null,0]
[null,null,null,null,1,0,null,null,0]
[null,null,null,null,1,0,null,null,0]
[null,null,null,null,1,0,null,null,0]
[null,null,null,null,1,0,null,null,0]
[null,null,null,null,1,0,null,null,0]
[null,null,null,null,1,0,null,null,0]
[null,null,null,null,1,0,null,null,0]
[null,null,null,null,1,0,null,null,0]
[null,null,null,null,1,0,null,null,0]
[null,null,null,null,1,0,null,null,0]
[null,null,null,null,1,0,null,null,0]
[null,null,null,null,1,0,null,null,0]
[null,null,null,null,1,0,null,null,0]
[null,null,null,null,1,0,null,null,0]
[null,null,null,null,1,0,null,null,0]
[null,null,null,null,1,0,null,null,0]
[null,null,null,null,1,0,null,null,0]
[null,null,null,null,1,0,null,null,0]
[null,null,null,null,1,0,null,null,0]
[null,null,null,null,1,0,null,null,0]
[null,null,null,null,1,0,null,null,0]
[null,null,null,null,1,0,null,null,0]
[null,null,null,null,1,0,null,null,0]
[null,null,null,null,1,0,null,null,0]
[null,null,null,null,1,0,null,null,0]
[null,null,null,null,1,0,null,null,0]
[null,null,null,null,1,0,null,null,0]
[null,null,null,null,1,0,null,null,0]
[null,null,null,null,1,0,null,null,0]
[null,null,null,null,1,0,null,null,0]
[null,null,null,null,1,0,null,null,0]
[null,null,null,null,1,0,null,null,0]
[null,null,null,null,1,0,null,null,0]
[null,null,null,null,1,0,null,null,0]
[null,null,null,null,1,0,null,null,0]
[null,null,null,null,1,0,null,null,0]
[null,null,null,null,1,0,null,null,0]
[null,null,null,null,1,0,null,null,0]
[null,null,null,null,1,0,null,null,0]
[null,null,null,null,1,0,null,null,0]
[null,null,null,null,1,0,null,null,0]
[null,null,null,null,1,0,null,null,0]
[null,null,null,null,1,0,null,null,0]
[null,null,null,null,1,0,null,null,0]
[null,null,null,null,1,0,null,null,0]
[null,null,null,null,1,0,null,null,0]
[null,null,null,null,1,0,null,null,0]
[null,null,null,null,1,0,null,null,0]
[null,null,null,null,1,0,null,null,0]
[null,null,null,null,1,0,null,null,0]
[null,null,null,null,1,0,null,null,0]
[null,null,null,null,1,0,null,null,0]
[null,null,null,null,1,0,null,null,0]
[null,null,null,null,1,{"$f":"D1719*E1719*4.5","v":0},null,null,{"$f":"D1719*E1719","v":0}]
[null,null,null,null,1,0,null,null,0]
[null,null,null,null,1,0,null,null,0]
[null,null,null,null,1,0,null,null,0]
[null,null,null,null,1,0,null,null,0]
[null,null,null,null,1,0,null,null,0]
[null,null,null,null,1,0,null,null,0]
[null,null,null,null,1,0,null,null,0]
[null,null,null,null,1,0,null,null,0]
[null,null,null,null,1,0,null,null,0]
[null,null,null,null,1,0,null,null,0]
[null,null,null,null,1,0,null,null,0]
[null,null,null,null,1,0,null,null,0]
[null,null,null,null,1,0,null,null,0]
[null,null,null,null,1,0,null,null,0]
[null,null,null,null,1,0,null,null,0]
[null,null,null,null,1,0,null,null,0]
[null,null,null,null,1,0,null,null,0]
[null,null,null,null,1,0,null,null,0]
[null,null,null,null,1,0,null,null,0]
[null,null,null,null,1,0,null,null,0]
[null,null,null,null,1,0,null,null,0]
[null,null,null,null,1,0,null,null,0]
[null,null,null,null,1,0,null,null,0]
[null,null,null,null,1,0,null,null,0]
[null,null,null,null,1,0,null,null,0]
[null,null,null,null,1,0,null,null,0]
[null,null,null,null,1,0,null,null,0]
[null,null,null,null,1,0,null,null,0]
[null,null,null,null,1,0,null,null,0]
[null,null,null,null,1,0,null,null,0]
[null,null,null,null,1,0,null,null,0]
[null,null,null,null,1,0,null,null,0]
[null,null,null,null,1,0,null,null,0]
[null,null,null,null,1,0,null,null,0]
[null,null,null,null,1,0,null,null,0]
[null,null,null,null,1,0,null,null,0]
[null,null,null,null,1,0,null,null,0]
[null,null,null,null,1,0,null,null,0]
[null,null,null,null,1,0,null,null,0]
[null,null,null,null,1,0,null,null,0]
[null,null,null,null,1,0,null,null,0]
[null,null,null,null,1,0,null,null,0]
[null,null,null,null,1,0,null,null,0]
[null,null,null,null,1,0,null,null,0]
[null,null,null,null,1,0,null,null,0]
[null,null,null,null,1,0,null,null,0]
[null,null,null,null,1,0,null,null,0]
[null,null,null,null,1,0,null,null,0]
[null,null,null,null,1,0,null,null,0]
[null,null,null,null,1,0,null,null,0]
[null,null,null,null,1,0,null,null,0]
[null,null,null,null,1,0,null,null,0]
[null,null,null,null,1,0,null,null,0]
[null,null,null,null,1,0,null,null,0]
[null,null,null,null,1,0,null,null,0]
[null,null,null,null,1,0,null,null,0]
[null,null,null,null,1,0,null,null,0]
[null,null,null,null,1,0,null,null,0]
[null,null,null,null,1,0,null,null,0]
[null,null,null,null,1,0,null,null,0]
[null,null,null,null,1,0,null,null,0]
[null,null,null,null,1,0,null,null,0]
[null,null,null,null,1,0,null,null,0]
[null,null,null,null,1,{"$f":"D1783*E1783*4.5","v":0},null,null,{"$f":"D1783*E1783","v":0}]
[null,null,null,null,1,0,null,null,0]
[null,null,null,null,1,0,null,null,0]
[null,null,null,null,1,0,null,null,0]
[null,null,null,null,1,0,null,null,0]
[null,null,null,null,1,0,null,null,0]
[null,null,null,null,1,0,null,null,0]
[null,null,null,null,1,0,null,null,0]
[null,null,null,null,1,0,null,null,0]
[null,null,null,null,1,0,null,null,0]
[null,null,null,null,1,0,null,null,0]
[null,null,null,null,1,0,null,null,0]
[null,null,null,null,1,0,null,null,0]
[null,null,null,null,1,0,null,null,0]
[null,null,null,null,1,0,null,null,0]
[null,null,null,null,1,0,null,null,0]
[null,null,null,null,1,0,null,null,0]
[null,null,null,null,1,0,null,null,0]
[null,null,null,null,1,0,null,null,0]
[null,null,null,null,1,0,null,null,0]
[null,null,null,null,1,0,null,null,0]
[null,null,null,null,1,0,null,null,0]
[null,null,null,null,1,0,null,null,0]
[null,null,null,null,1,0,null,null,0]
[null,null,null,null,1,0,null,null,0]
[null,null,null,null,1,0,null,null,0]
[null,null,null,null,1,0,null,null,0]
[null,null,null,null,1,0,null,null,0]
[null,null,null,null,1,0,null,null,0]
[null,null,null,null,1,0,null,null,0]
[null,null,null,null,1,0,null,null,0]
[null,null,null,null,1,0,null,null,0]
[null,null,null,null,1,0,null,null,0]
[null,null,null,null,1,0,null,null,0]
[null,null,null,null,1,0,null,null,0]
[null,null,null,null,1,0,null,null,0]
[null,null,null,null,1,0,null,null,0]
[null,null,null,null,1,0,null,null,0]
[null,null,null,null,1,0,null,null,0]
[null,null,null,null,1,0,null,null,0]
[null,null,null,null,1,0,null,null,0]
[null,null,null,null,1,0,null,null,0]
[null,null,null,null,1,0,null,null,0]
[null,null,null,null,1,0,null,null,0]
[null,null,null,null,1,0,null,null,0]
[null,null,null,null,1,0,null,null,0]
[null,null,null,null,1,0,null,null,0]
[null,null,null,null,1,0,null,null,0]
[null,null,null,null,1,0,null,null,0]
[null,null,null,null,1,0,null,null,0]
[null,null,null,null,1,0,null,null,0]
[null,null,null,null,1,0,null,null,0]
[null,null,null,null,1,0,null,null,0]
[null,null,null,null,1,0,null,null,0]
[null,null,null,null,1,0,null,null,0]
[null,null,null,null,1,0,null,null,0]
[null,null,null,null,1,0,null,null,0]
[null,null,null,null,1,0,null,null,0]
[null,null,null,null,1,0,null,null,0]
[null,null,null,null,1,0,null,null,0]
[null,null,null,null,1,0,null,null,0]
[null,null,null,null,1,0,null,null,0]
[null,null,null,null,1,0,null,null,0]
[null,null,null,null,1,0,null,null,0]
[null,null,null,null,1,{"$f":"D1847*E1847*4.5","v":0},null,null,{"$f":"D1847*E1847","v":0}]
[null,null,null,null,1,0,null,null,0]
[null,null,null,null,1,0,null,null,0]
[null,null,null,null,1,0,null,null,0]
[null,null,null,null,1,0,null,null,0]
[null,null,null,null,1,0,null,null,0]
[null,null,null,null,1,0,null,null,0]
[null,null,null,null,1,0,null,null,0]
[null,null,null,null,1,0,null,null,0]
[null,null,null,null,1,0,null,null,0]
[null,null,null,null,1,0,null,null,0]
[null,null,null,null,1,0,null,null,0]
[null,null,null,null,1,0,null,null,0]
[null,null,null,null,1,0,null,null,0]
[null,null,null,null,1,0,null,null,0]
[null,null,null,null,1,0,null,null,0]
[null,null,null,null,1,0,null,null,0]
[null,null,null,null,1,0,null,null,0]
[null,null,null,null,1,0,null,null,0]
[null,null,null,null,1,0,null,null,0]
[null,null,null,null,1,0,null,null,0]
[null,null,null,null,1,0,null,null,0]
[null,null,null,null,1,0,null,null,0]
[null,null,null,null,1,0,null,null,0]
[null,null,null,null,1,0,null,null,0]
[null,null,null,null,1,0,null,null,0]
[null,null,null,null,1,0,null,null,0]
[null,null,null,null,1,0,null,null,0]
[null,null,null,null,1,0,null,null,0]
[null,null,null,null,1,0,null,null,0]
[null,null,null,null,1,0,null,null,0]
[null,null,null,null,1,0,null,null,0]
[null,null,null,null,1,0,null,null,0]
[null,null,null,null,1,0,null,null,0]
[null,null,null,null,1,0,null,null,0]
[null,null,null,null,1,0,null,null,0]
[null,null,null,null,1,0,null,null,0]
[null,null,null,null,1,0,null,null,0]
[null,null,null,null,1,0,null,null,0]
[null,null,null,null,1,0,null,null,0]
[null,null,null,null,1,0,null,null,0]
[null,null,null,null,1,0,null,null,0]
[null,null,null,null,1,0,null,null,0]
[null,null,null,null,1,0,null,null,0]
[null,null,null,null,1,0,null,null,0]
[null,null,null,null,1,0,null,null,0]
[null,null,null,null,1,0,null,null,0]
[null,null,null,null,1,0,null,null,0]
[null,null,null,null,1,0,null,null,0]
[null,null,null,null,1,0,null,null,0]
[null,null,null,null,1,0,null,null,0]
[null,null,null,null,1,0,null,null,0]
[null,null,null,null,1,0,null,null,0]
[null,null,null,null,1,0,null,null,0]
[null,null,null,null,1,0,null,null,0]
[null,null,null,null,1,0,null,null,0]
[null,null,null,null,1,0,null,null,0]
[null,null,null,null,1,0,null,null,0]
[null,null,null,null,1,0,null,null,0]
[null,null,null,null,1,0,null,null,0]
[null,null,null,null,1,0,null,null,0]
[null,null,null,null,1,0,null,null,0]
[null,null,null,null,1,0,null,null,0]
[null,null,null,null,1,0,null,null,0]
[null,null,null,null,1,{"$f":"D1911*E1911*4.5","v":0},null,null,{"$f":"D1911*E1911","v":0}]
[null,null,null,null,1,0,null,null,0]
[null,null,null,null,1,0,null,null,0]
[null,null,null,null,1,0,null,null,0]
[null,null,null,null,1,0,null,null,0]
[null,null,null,null,1,0,null,null,0]
[null,null,null,null,1,0,null,null,0]
[null,null,null,null,1,0,null,null,0]
[null,null,null,null,1,0,null,null,0]
[null,null,null,null,1,0,null,null,0]
[null,null,null,null,1,0,null,null,0]
[null,null,null,null,1,0,null,null,0]
[null,null,null,null,1,0,null,null,0]
[null,null,null,null,1,0,null,null,0]
[null,null,null,null,1,0,null,null,0]
[null,null,null,null,1,0,null,null,0]
[null,null,null,null,1,0,null,null,0]
[null,null,null,null,1,0,null,null,0]
[null,null,null,null,1,0,null,null,0]
[null,null,null,null,1,0,null,null,0]
[null,null,null,null,1,0,null,null,0]
[null,null,null,null,1,0,null,null,0]
[null,null,null,null,1,0,null,null,0]
[null,null,null,null,1,0,null,null,0]
[null,null,null,null,1,0,null,null,0]
[null,null,null,null,1,0,null,null,0]
[null,null,null,null,1,0,null,null,0]
[null,null,null,null,1,0,null,null,0]
[null,null,null,null,1,0,null,null,0]
[null,null,null,null,1,0,null,null,0]
[null,null,null,null,1,0,null,null,0]
[null,null,null,null,1,0,null,null,0]
[null,null,null,null,1,0,null,null,0]
[null,null,null,null,1,0,null,null,0]
[null,null,null,null,1,0,null,null,0]
[null,null,null,null,1,0,null,null,0]
[null,null,null,null,1,0,null,null,0]
[null,null,null,null,1,0,null,null,0]
[null,null,null,null,1,0,null,null,0]
[null,null,null,null,1,0,null,null,0]
[null,null,null,null,1,0,null,null,0]
[null,null,null,null,1,0,null,null,0]
[null,null,null,null,1,0,null,null,0]
[null,null,null,null,1,0,null,null,0]
[null,null,null,null,1,0,null,null,0]
[null,null,null,null,1,0,null,null,0]
[null,null,null,null,1,0,null,null,0]
[null,null,null,null,1,0,null,null,0]
[null,null,null,null,1,0,null,null,0]
[null,null,null,null,1,0,null,null,0]
[null,null,null,null,1,0,null,null,0]
[null,null,null,null,1,0,null,null,0]
[null,null,null,null,1,0,null,null,0]
[null,null,null,null,1,0,null,null,0]
[null,null,null,null,1,0,null,null,0]
[null,null,null,null,1,0,null,null,0]
[null,null,null,null,1,0,null,null,0]
[null,null,null,null,1,0,null,null,0]
[null,null,null,null,1,0,null,null,0]
[null,null,null,null,1,0,null,null,0]
[null,null,null,null,1,0,null,null,0]
[null,null,null,null,1,0,null,null,0]
[null,null,null,null,1,0,null,null,0]
[null,null,null,null,1,0,null,null,0]
[null,null,null,null,1,{"$f":"D1975*E1975*4.5","v":0},null,null,{"$f":"D1975*E1975","v":0}]
[null,null,null,null,1,0,null,null,0]
[null,null,null,null,1,0,null,null,0]
[null,null,null,null,1,0,null,null,0]
[null,null,null,null,1,0,null,null,0]
[null,null,null,null,1,0,null,null,0]
[null,null,null,null,1,0,null,null,0]
[null,null,null,null,1,0,null,null,0]
[null,null,null,null,1,0,null,null,0]
[null,null,null,null,1,0,null,null,0]
[null,null,null,null,1,0,null,null,0]
[null,null,null,null,1,0,null,null,0]
[null,null,null,null,1,0,null,null,0]
[null,null,null,null,1,0,null,null,0]
[null,null,null,null,1,0,null,null,0]
[null,null,null,null,1,0,null,null,0]
[null,null,null,null,1,0,null,null,0]
[null,null,null,null,1,0,null,null,0]
[null,null,null,null,1,0,null,null,0]
[null,null,null,null,1,0,null,null,0]
[null,null,null,null,1,0,null,null,0]
[null,null,null,null,1,0,null,null,0]
[null,null,null,null,1,0,null,null,0]
[null,null,null,null,1,0,null,null,0]
[null,null,null,null,1,0,null,null,0]
[null,null,null,null,1,0,null,null,0]
[null,null,null,null,1,0,null,null,0]
[null,null,null,null,1,0,null,null,0]
[null,null,null,null,1,0,null,null,0]
[null,null,null,null,1,0,null,null,0]
[null,null,null,null,1,0,null,null,0]
[null,null,null,null,1,0,null,null,0]
[null,null,null,null,1,0,null,null,0]
[null,null,null,null,1,0,null,null,0]
[null,null,null,null,1,0,null,null,0]
[null,null,null,null,1,0,null,null,0]
[null,null,null,null,1,0,null,null,0]
[null,null,null,null,1,0,null,null,0]
[null,null,null,null,1,0,null,null,0]
[null,null,null,null,1,0,null,null,0]
[null,null,null,null,1,0,null,null,0]
[null,null,null,null,1,0,null,null,0]
[null,null,null,null,1,0,null,null,0]
[null,null,null,null,1,0,null,null,0]
[null,null,null,null,1,0,null,null,0]
[null,null,null,null,1,0,null,null,0]
[null,null,null,null,1,0,null,null,0]
[null,null,null,null,1,0,null,null,0]
[null,null,null,null,1,0,null,null,0]
[null,null,null,null,1,0,null,null,0]
[null,null,null,null,1,0,null,null,0]
[null,null,null,null,1,0,null,null,0]
[null,null,null,null,1,0,null,null,0]
[null,null,null,null,1,0,null,null,0]
[null,null,null,null,1,0,null,null,0]
[null,null,null,null,1,0,null,null,0]
[null,null,null,null,1,0,null,null,0]
[null,null,null,null,1,0,null,null,0]
[null,null,null,null,1,0,null,null,0]
[null,null,null,null,1,0,null,null,0]
[null,null,null,null,1,0,null,null,0]
[null,null,null,null,1,0,null,null,0]
[null,null,null,null,1,0,null,null,0]
[null,null,null,null,1,0,null,null,0]
[null,null,null,null,1,{"$f":"D2039*E2039*4.5","v":0},null,null,{"$f":"D2039*E2039","v":0}]
[null,null,null,null,1,0,null,null,0]
[null,null,null,null,1,0,null,null,0]
[null,null,null,null,1,0,null,null,0]
[null,null,null,null,1,0,null,null,0]
[null,null,null,null,1,0,null,null,0]
[null,null,null,null,1,0,null,null,0]
[null,null,null,null,1,0,null,null,0]
[null,null,null,null,1,0,null,null,0]
[null,null,null,null,1,0,null,null,0]
[null,null,null,null,1,0,null,null,0]
[null,null,null,null,1,0,null,null,0]
[null,null,null,null,1,0,null,null,0]
[null,null,null,null,1,0,null,null,0]
[null,null,null,null,1,0,null,null,0]
[null,null,null,null,1,0,null,null,0]
[null,null,null,null,1,0,null,null,0]
[null,null,null,null,1,0,null,null,0]
[null,null,null,null,1,0,null,null,0]
[null,null,null,null,1,0,null,null,0]
[null,null,null,null,1,0,null,null,0]
[null,null,null,null,1,0,null,null,0]
[null,null,null,null,1,0,null,null,0]
[null,null,null,null,1,0,null,null,0]
[null,null,null,null,1,0,null,null,0]
[null,null,null,null,1,0,null,null,0]
[null,null,null,null,1,0,null,null,0]
[null,null,null,null,1,0,null,null,0]
[null,null,null,null,1,0,null,null,0]
[null,null,null,null,1,0,null,null,0]
[null,null,null,null,1,0,null,null,0]
[null,null,null,null,1,0,null,null,0]
[null,null,null,null,1,0,null,null,0]
[null,null,null,null,1,0,null,null,0]
[null,null,null,null,1,0,null,null,0]
[null,null,null,null,1,0,null,null,0]
[null,null,null,null,1,0,null,null,0]
[null,null,null,null,1,0,null,null,0]
[null,null,null,null,1,0,null,null,0]
[null,null,null,null,1,0,null,null,0]
[null,null,null,null,1,0,null,null,0]
[null,null,null,null,1,0,null,null,0]
[null,null,null,null,1,0,null,null,0]
[null,null,null,null,1,0,null,null,0]
[null,null,null,null,1,0,null,null,0]
[null,null,null,null,1,0,null,null,0]
[null,null,null,null,1,0,null,null,0]
[null,null,null,null,1,0,null,null,0]
[null,null,null,null,1,0,null,null,0]
[null,null,null,null,1,0,null,null,0]
[null,null,null,null,1,0,null,null,0]
[null,null,null,null,1,0,null,null,0]
[null,null,null,null,1,0,null,null,0]
[null,null,null,null,1,0,null,null,0]
[null,null,null,null,1,0,null,null,0]
[null,null,null,null,1,0,null,null,0]
[null,null,null,null,1,0,null,null,0]
[null,null,null,null,1,0,null,null,0]
[null,null,null,null,1,0,null,null,0]
[null,null,null,null,1,0,null,null,0]
[null,null,null,null,1,0,null,null,0]
[null,null,null,null,1,0,null,null,0]
[null,null,null,null,1,0,null,null,0]
[null,null,null,null,1,0,null,null,0]
[null,null,null,null,1,{"$f":"D2103*E2103*4.5","v":0},null,null,{"$f":"D2103*E2103","v":0}]
[null,null,null,null,1,0,null,null,0]
[null,null,null,null,1,0,null,null,0]
[null,null,null,null,1,0,null,null,0]
[null,null,null,null,1,0,null,null,0]
[null,null,null,null,1,0,null,null,0]
[null,null,null,null,1,0,null,null,0]
[null,null,null,null,1,0,null,null,0]
[null,null,null,null,1,0,null,null,0]
[null,null,null,null,1,0,null,null,0]
[null,null,null,null,1,0,null,null,0]
[null,null,null,null,1,0,null,null,0]
[null,null,null,null,1,0,null,null,0]
[null,null,null,null,1,0,null,null,0]
[null,null,null,null,1,0,null,null,0]
[null,null,null,null,1,0,null,null,0]
[null,null,null,null,1,0,null,null,0]
[null,null,null,null,1,0,null,null,0]
[null,null,null,null,1,0,null,null,0]
[null,null,null,null,1,0,null,null,0]
[null,null,null,null,1,0,null,null,0]
[null,null,null,null,1,0,null,null,0]
[null,null,null,null,1,0,null,null,0]
[null,null,null,null,1,0,null,null,0]
[null,null,null,null,1,0,null,null,0]
[null,null,null,null,1,0,null,null,0]
[null,null,null,null,1,0,null,null,0]
[null,null,null,null,1,0,null,null,0]
[null,null,null,null,1,0,null,null,0]
[null,null,null,null,1,0,null,null,0]
[null,null,null,null,1,0,null,null,0]
[null,null,null,null,1,0,null,null,0]
[null,null,null,null,1,0,null,null,0]
[null,null,null,null,1,0,null,null,0]
[null,null,null,null,1,0,null,null,0]
[null,null,null,null,1,0,null,null,0]
[null,null,null,null,1,0,null,null,0]
[null,null,null,null,1,0,null,null,0]
[null,null,null,null,1,0,null,null,0]
[null,null,null,null,1,0,null,null,0]
[null,null,null,null,1,0,null,null,0]
[null,null,null,null,1,0,null,null,0]
[null,null,null,null,1,0,null,null,0]
[null,null,null,null,1,0,null,null,0]
[null,null,null,null,1,0,null,null,0]
[null,null,null,null,1,0,null,null,0]
[null,null,null,null,1,0,null,null,0]
[null,null,null,null,1,0,null,null,0]
[null,null,null,null,1,0,null,null,0]
[null,null,null,null,1,0,null,null,0]
[null,null,null,null,1,0,null,null,0]
[null,null,null,null,1,0,null,null,0]
[null,null,null,null,1,0,null,null,0]
[null,null,null,null,1,0,null,null,0]
[null,null,null,null,1,0,null,null,0]
[null,null,null,null,1,0,null,null,0]
[null,null,null,null,1,0,null,null,0]
[null,null,null,null,1,0,null,null,0]
[null,null,null,null,1,0,null,null,0]
[null,null,null,null,1,0,null,null,0]
[null,null,null,null,1,0,null,null,0]
[null,null,null,null,1,0,null,null,0]
[null,null,null,null,1,0,null,null,0]
[null,null,null,null,1,0,null,null,0]
[null,null,null,null,1,{"$f":"D2167*E2167*4.5","v":0},null,null,{"$f":"D2167*E2167","v":0}]
[null,null,null,null,1,0,null,null,0]
[null,null,null,null,1,0,null,null,0]
[null,null,null,null,1,0,null,null,0]
[null,null,null,null,1,0,null,null,0]
[null,null,null,null,1,0,null,null,0]
[null,null,null,null,1,0,null,null,0]
[null,null,null,null,1,0,null,null,0]
[null,null,null,null,1,0,null,null,0]
[null,null,null,null,1,0,null,null,0]
[null,null,null,null,1,0,null,null,0]
[null,null,null,null,1,0,null,null,0]
[null,null,null,null,1,0,null,null,0]
[null,null,null,null,1,0,null,null,0]
[null,null,null,null,1,0,null,null,0]
[null,null,null,null,1,0,null,null,0]
[null,null,null,null,1,0,null,null,0]
[null,null,null,null,1,0,null,null,0]
[null,null,null,null,1,0,null,null,0]
[null,null,null,null,1,0,null,null,0]
[null,null,null,null,1,0,null,null,0]
[null,null,null,null,1,0,null,null,0]
[null,null,null,null,1,0,null,null,0]
[null,null,null,null,1,0,null,null,0]
[null,null,null,null,1,0,null,null,0]
[null,null,null,null,1,0,null,null,0]
[null,null,null,null,1,0,null,null,0]
[null,null,null,null,1,0,null,null,0]
[null,null,null,null,1,0,null,null,0]
[null,null,null,null,1,0,null,null,0]
[null,null,null,null,1,0,null,null,0]
[null,null,null,null,1,0,null,null,0]
[null,null,null,null,1,0,null,null,0]
[null,null,null,null,1,0,null,null,0]
[null,null,null,null,1,0,null,null,0]
[null,null,null,null,1,0,null,null,0]
[null,null,null,null,1,0,null,null,0]
[null,null,null,null,1,0,null,null,0]
[null,null,null,null,1,0,null,null,0]
[null,null,null,null,1,0,null,null,0]
[null,null,null,null,1,0,null,null,0]
[null,null,null,null,1,0,null,null,0]
[null,null,null,null,1,0,null,null,0]
[null,null,null,null,1,0,null,null,0]
[null,null,null,null,1,0,null,null,0]
[null,null,null,null,1,0,null,null,0]
[null,null,null,null,1,0,null,null,0]
[null,null,null,null,1,0,null,null,0]
[null,null,null,null,1,0,null,null,0]
[null,null,null,null,1,0,null,null,0]
[null,null,null,null,1,0,null,null,0]
[null,null,null,null,1,0,null,null,0]
[null,null,null,null,1,0,null,null,0]
[null,null,null,null,1,0,null,null,0]
[null,null,null,null,1,0,null,null,0]
[null,null,null,null,1,0,null,null,0]
[null,null,null,null,1,0,null,null,0]
[null,null,null,null,1,0,null,null,0]
[null,null,null,null,1,0,null,null,0]
[null,null,null,null,1,0,null,null,0]
[null,null,null,null,1,0,null,null,0]
[null,null,null,null,1,0,null,null,0]
[null,null,null,null,1,0,null,null,0]
[null,null,null,null,1,0,null,null,0]
[null,null,null,null,1,{"$f":"D2231*E2231*4.5","v":0},null,null,{"$f":"D2231*E2231","v":0}]
[null,null,null,null,1,0,null,null,0]
[null,null,null,null,1,0,null,null,0]
[null,null,null,null,1,0,null,null,0]
[null,null,null,null,1,0,null,null,0]
[null,null,null,null,1,0,null,null,0]
[null,null,null,null,1,0,null,null,0]
[null,null,null,null,1,0,null,null,0]
[null,null,null,null,1,0,null,null,0]
[null,null,null,null,1,0,null,null,0]
[null,null,null,null,1,0,null,null,0]
[null,null,null,null,1,0,null,null,0]
[null,null,null,null,1,0,null,null,0]
[null,null,null,null,1,0,null,null,0]
[null,null,null,null,1,0,null,null,0]
[null,null,null,null,1,0,null,null,0]
[null,null,null,null,1,0,null,null,0]
[null,null,null,null,1,0,null,null,0]
[null,null,null,null,1,0,null,null,0]
[null,null,null,null,1,0,null,null,0]
[null,null,null,null,1,0,null,null,0]
[null,null,null,null,1,0,null,null,0]
[null,null,null,null,1,0,null,null,0]
[null,null,null,null,1,0,null,null,0]
[null,null,null,null,1,0,null,null,0]
[null,null,null,null,1,0,null,null,0]
[null,null,null,null,1,0,null,null,0]
[null,null,null,null,1,0,null,null,0]
[null,null,null,null,1,0,null,null,0]
[null,null,null,null,1,0,null,null,0]
[null,null,null,null,1,0,null,null,0]
[null,null,null,null,1,0,null,null,0]
[null,null,null,null,1,0,null,null,0]
[null,null,null,null,1,0,null,null,0]
[null,null,null,null,1,0,null,null,0]
[null,null,null,null,1,0,null,null,0]
[null,null,null,null,1,0,null,null,0]
[null,null,null,null,1,0,null,null,0]
[null,null,null,null,1,0,null,null,0]
[null,null,null,null,1,0,null,null,0]
[null,null,null,null,1,0,null,null,0]
[null,null,null,null,1,0,null,null,0]
[null,null,null,null,1,0,null,null,0]
[null,null,null,null,1,0,null,null,0]
[null,null,null,null,1,0,null,null,0]
[null,null,null,null,1,0,null,null,0]
[null,null,null,null,1,0,null,null,0]
[null,null,null,null,1,0,null,null,0]
[null,null,null,null,1,0,null,null,0]
[null,null,null,null,1,0,null,null,0]
[null,null,null,null,1,0,null,null,0]
[null,null,null,null,1,0,null,null,0]
[null,null,null,null,1,0,null,null,0]
[null,null,null,null,1,0,null,null,0]
[null,null,null,null,1,0,null,null,0]
[null,null,null,null,1,0,null,null,0]
[null,null,null,null,1,0,null,null,0]
[null,null,null,null,1,0,null,null,0]
[null,null,null,null,1,0,null,null,0]
[null,null,null,null,1,0,null,null,0]
[null,null,null,null,1,0,null,null,0]
[null,null,null,null,1,0,null,null,0]
[null,null,null,null,1,0,null,null,0]
[null,null,null,null,1,0,null,null,0]
[null,null,null,null,1,{"$f":"D2295*E2295*4.5","v":0},null,null,{"$f":"D2295*E2295","v":0}]
[null,null,null,null,1,0,null,null,0]
[null,null,null,null,1,0,null,null,0]
[null,null,null,null,1,0,null,null,0]
[null,null,null,null,1,0,null,null,0]
[null,null,null,null,1,0,null,null,0]
[null,null,null,null,1,0,null,null,0]
[null,null,null,null,1,0,null,null,0]
[null,null,null,null,1,0,null,null,0]
[null,null,null,null,1,0,null,null,0]
[null,null,null,null,1,0,null,null,0]
[null,null,null,null,1,0,null,null,0]
[null,null,null,null,1,0,null,null,0]
[null,null,null,null,1,0,null,null,0]
[null,null,null,null,1,0,null,null,0]
[null,null,null,null,1,0,null,null,0]
[null,null,null,null,1,0,null,null,0]
[null,null,null,null,1,0,null,null,0]
[null,null,null,null,1,0,null,null,0]
[null,null,null,null,1,0,null,null,0]
[null,null,null,null,1,0,null,null,0]
[null,null,null,null,1,0,null,null,0]
[null,null,null,null,1,0,null,null,0]
[null,null,null,null,1,0,null,null,0]
[null,null,null,null,1,0,null,null,0]
[null,null,null,null,1,0,null,null,0]
[null,null,null,null,1,0,null,null,0]
[null,null,null,null,1,0,null,null,0]
[null,null,null,null,1,0,null,null,0]
[null,null,null,null,1,0,null,null,0]
[null,null,null,null,1,0,null,null,0]
[null,null,null,null,1,0,null,null,0]
[null,null,null,null,1,0,null,null,0]
[null,null,null,null,1,0,null,null,0]
[null,null,null,null,1,0,null,null,0]
[null,null,null,null,1,0,null,null,0]
[null,null,null,null,1,0,null,null,0]
[null,null,null,null,1,0,null,null,0]
[null,null,null,null,1,0,null,null,0]
[null,null,null,null,1,0,null,null,0]
[null,null,null,null,1,0,null,null,0]
[null,null,null,null,1,0,null,null,0]
[null,null,null,null,1,0,null,null,0]
[null,null,null,null,1,0,null,null,0]
[null,null,null,null,1,0,null,null,0]
[null,null,null,null,1,0,null,null,0]
[null,null,null,null,1,0,null,null,0]
[null,null,null,null,1,0,null,null,0]
[null,null,null,null,1,0,null,null,0]
[null,null,null,null,1,0,null,null,0]
[null,null,null,null,1,0,null,null,0]
[null,null,null,null,1,0,null,null,0]
[null,null,null,null,1,0,null,null,0]
[null,null,null,null,1,0,null,null,0]
[null,null,null,null,1,0,null,null,0]
[null,null,null,null,1,0,null,null,0]
[null,null,null,null,1,0,null,null,0]
[null,null,null,null,1,0,null,null,0]
[null,null,null,null,1,0,null,null,0]
[null,null,null,null,1,0,null,null,0]
[null,null,null,null,1,0,null,null,0]
[null,null,null,null,1,0,null,null,0]
[null,null,null,null,1,0,null,null,0]
[null,null,null,null,1,0,null,null,0]
[null,null,null,null,1,{"$f":"D2359*E2359*4.5","v":0},null,null,{"$f":"D2359*E2359","v":0}]
[null,null,null,null,1,0,null,null,0]
[null,null,null,null,1,0,null,null,0]
[null,null,null,null,1,0,null,null,0]
[null,null,null,null,1,0,null,null,0]
[null,null,null,null,1,0,null,null,0]
[null,null,null,null,1,0,null,null,0]
[null,null,null,null,1,0,null,null,0]
[null,null,null,null,1,0,null,null,0]
[null,null,null,null,1,0,null,null,0]
[null,null,null,null,1,0,null,null,0]
[null,null,null,null,1,0,null,null,0]
[null,null,null,null,1,0,null,null,0]
[null,null,null,null,1,0,null,null,0]
[null,null,null,null,1,0,null,null,0]
[null,null,null,null,1,0,null,null,0]
[null,null,null,null,1,0,null,null,0]
[null,null,null,null,1,0,null,null,0]
[null,null,null,null,1,0,null,null,0]
[null,null,null,null,1,0,null,null,0]
[null,null,null,null,1,0,null,null,0]
[null,null,null,null,1,0,null,null,0]
[null,null,null,null,1,0,null,null,0]
[null,null,null,null,1,0,null,null,0]
[null,null,null,null,1,0,null,null,0]
[null,null,null,null,1,0,null,null,0]
[null,null,null,null,1,0,null,null,0]
[null,null,null,null,1,0,null,null,0]
[null,null,null,null,1,0,null,null,0]
[null,null,null,null,1,0,null,null,0]
[null,null,null,null,1,0,null,null,0]
[null,null,null,null,1,0,null,null,0]
[null,null,null,null,1,0,null,null,0]
[null,null,null,null,1,0,null,null,0]
[null,null,null,null,1,0,null,null,0]
[null,null,null,null,1,0,null,null,0]
[null,null,null,null,1,0,null,null,0]
[null,null,null,null,1,0,null,null,0]
[null,null,null,null,1,0,null,null,0]
[null,null,null,null,1,0,null,null,0]
[null,null,null,null,1,0,null,null,0]
[null,null,null,null,1,0,null,null,0]
[null,null,null,null,1,0,null,null,0]
[null,null,null,null,1,0,null,null,0]
[null,null,null,null,1,0,null,null,0]
[null,null,null,null,1,0,null,null,0]
[null,null,null,null,1,0,null,null,0]
[null,null,null,null,1,0,null,null,0]
[null,null,null,null,1,0,null,null,0]
[null,null,null,null,1,0,null,null,0]
[null,null,null,null,1,0,null,null,0]
[null,null,null,null,1,0,null,null,0]
[null,null,null,null,1,0,null,null,0]
[null,null,null,null,1,0,null,null,0]
[null,null,null,null,1,0,null,null,0]
[null,null,null,null,1,0,null,null,0]
[null,null,null,null,1,0,null,null,0]
[null,null,null,null,1,0,null,null,0]
[null,null,null,null,1,0,null,null,0]
[null,null,null,null,1,0,null,null,0]
[null,null,null,null,1,0,null,null,0]
[null,null,null,null,1,0,null,null,0]
[null,null,null,null,1,0,null,null,0]
[null,null,null,null,1,0,null,null,0]
[null,null,null,null,1,{"$f":"D2423*E2423*4.5","v":0},null,null,{"$f":"D2423*E2423","v":0}]
[null,null,null,null,1,0,null,null,0]
[null,null,null,null,1,0,null,null,0]
[null,null,null,null,1,0,null,null,0]
[null,null,null,null,1,0,null,null,0]
[null,null,null,null,1,0,null,null,0]
[null,null,null,null,1,0,null,null,0]
[null,null,null,null,1,0,null,null,0]
[null,null,null,null,1,0,null,null,0]
[null,null,null,null,1,0,null,null,0]
[null,null,null,null,1,0,null,null,0]
[null,null,null,null,1,0,null,null,0]
[null,null,null,null,1,0,null,null,0]
[null,null,null,null,1,0,null,null,0]
[null,null,null,null,1,0,null,null,0]
[null,null,null,null,1,0,null,null,0]
[null,null,null,null,1,0,null,null,0]
[null,null,null,null,1,0,null,null,0]
[null,null,null,null,1,0,null,null,0]
[null,null,null,null,1,0,null,null,0]
[null,null,null,null,1,0,null,null,0]
[null,null,null,null,1,0,null,null,0]
[null,null,null,null,1,0,null,null,0]
[null,null,null,null,1,0,null,null,0]
[null,null,null,null,1,0,null,null,0]
[null,null,null,null,1,0,null,null,0]
[null,null,null,null,1,0,null,null,0]
[null,null,null,null,1,0,null,null,0]
[null,null,null,null,1,0,null,null,0]
[null,null,null,null,1,0,null,null,0]
[null,null,null,null,1,0,null,null,0]
[null,null,null,null,1,0,null,null,0]
[null,null,null,null,1,0,null,null,0]
[null,null,null,null,1,0,null,null,0]
[null,null,null,null,1,0,null,null,0]
[null,null,null,null,1,0,null,null,0]
[null,null,null,null,1,0,null,null,0]
[null,null,null,null,1,0,null,null,0]
[null,null,null,null,1,0,null,null,0]
[null,null,null,null,1,0,null,null,0]
[null,null,null,null,1,0,null,null,0]
[null,null,null,null,1,0,null,null,0]
[null,null,null,null,1,0,null,null,0]
[null,null,null,null,1,0,null,null,0]
[null,null,null,null,1,0,null,null,0]
[null,null,null,null,1,0,null,null,0]
[null,null,null,null,1,0,null,null,0]
[null,null,null,null,1,0,null,null,0]
[null,null,null,null,1,0,null,null,0]
[null,null,null,null,1,0,null,null,0]
[null,null,null,null,1,0,null,null,0]
[null,null,null,null,1,0,null,null,0]
[null,null,null,null,1,0,null,null,0]
[null,null,null,null,1,0,null,null,0]
[null,null,null,null,1,0,null,null,0]
[null,null,null,null,1,0,null,null,0]
[null,null,null,null,1,0,null,null,0]
[null,null,null,null,1,0,null,null,0]
[null,null,null,null,1,0,null,null,0]
[null,null,null,null,1,0,null,null,0]
[null,null,null,null,1,0,null,null,0]
[null,null,null,null,1,0,null,null,0]
[null,null,null,null,1,0,null,null,0]
[null,null,null,null,1,0,null,null,0]
[null,null,null,null,1,{"$f":"D2487*E2487*4.5","v":0},null,null,{"$f":"D2487*E2487","v":0}]
[null,null,null,null,1,0,null,null,0]
[null,null,null,null,1,0,null,null,0]
[null,null,null,null,1,0,null,null,0]
[null,null,null,null,1,0,null,null,0]
[null,null,null,null,1,0,null,null,0]
[null,null,null,null,1,0,null,null,0]
[null,null,null,null,1,0,null,null,0]
[null,null,null,null,1,0,null,null,0]
[null,null,null,null,1,0,null,null,0]
[null,null,null,null,1,0,null,null,0]
[null,null,null,null,1,0,null,null,0]
[null,null,null,null,1,0,null,null,0]
[null,null,null,null,1,0,null,null,0]
[null,null,null,null,1,0,null,null,0]
[null,null,null,null,1,0,null,null,0]
[null,null,null,null,1,0,null,null,0]
[null,null,null,null,1,0,null,null,0]
[null,null,null,null,1,0,null,null,0]
[null,null,null,null,1,0,null,null,0]
[null,null,null,null,1,0,null,null,0]
[null,null,null,null,1,0,null,null,0]
[null,null,null,null,1,0,null,null,0]
[null,null,null,null,1,0,null,null,0]
[null,null,null,null,1,0,null,null,0]
[null,null,null,null,1,0,null,null,0]
[null,null,null,null,1,0,null,null,0]
[null,null,null,null,1,0,null,null,0]
[null,null,null,null,1,0,null,null,0]
[null,null,null,null,1,0,null,null,0]
[null,null,null,null,1,0,null,null,0]
[null,null,null,null,1,0,null,null,0]
[null,null,null,null,1,0,null,null,0]
[null,null,null,null,1,0,null,null,0]
[null,null,null,null,1,0,null,null,0]
[null,null,null,null,1,0,null,null,0]
[null,null,null,null,1,0,null,null,0]
[null,null,null,null,1,0,null,null,0]
[null,null,null,null,1,0,null,null,0]
[null,null,null,null,1,0,null,null,0]
[null,null,null,null,1,0,null,null,0]
[null,null,null,null,1,0,null,null,0]
[null,null,null,null,1,0,null,null,0]
[null,null,null,null,1,0,null,null,0]
[null,null,null,null,1,0,null,null,0]
[null,null,null,null,1,0,null,null,0]
[null,null,null,null,1,0,null,null,0]
[null,null,null,null,1,0,null,null,0]
[null,null,null,null,1,0,null,null,0]
[null,null,null,null,1,0,null,null,0]
[null,null,null,null,1,0,null,null,0]
[null,null,null,null,1,0,null,null,0]
[null,null,null,null,1,0,null,null,0]
[null,null,null,null,1,0,null,null,0]
[null,null,null,null,1,0,null,null,0]
[null,null,null,null,1,0,null,null,0]
[null,null,null,null,1,0,null,null,0]
[null,null,null,null,1,0,null,null,0]
[null,null,null,null,1,0,null,null,0]
[null,null,null,null,1,0,null,null,0]
[null,null,null,null,1,0,null,null,0]
[null,null,null,null,1,0,null,null,0]
[null,null,null,null,1,0,null,null,0]
[null,null,null,null,1,0,null,null,0]
[null,null,null,null,1,{"$f":"D2551*E2551*4.5","v":0},null,null,{"$f":"D2551*E2551","v":0}]
[null,null,null,null,1,0,null,null,0]
[null,null,null,null,1,0,null,null,0]
[null,null,null,null,1,0,null,null,0]
[null,null,null,null,1,0,null,null,0]
[null,null,null,null,1,0,null,null,0]
[null,null,null,null,1,0,null,null,0]
[null,null,null,null,1,0,null,null,0]
[null,null,null,null,1,0,null,null,0]
[null,null,null,null,1,0,null,null,0]
[null,null,null,null,1,0,null,null,0]
[null,null,null,null,1,0,null,null,0]
[null,null,null,null,1,0,null,null,0]
[null,null,null,null,1,0,null,null,0]
[null,null,null,null,1,0,null,null,0]
[null,null,null,null,1,0,null,null,0]
[null,null,null,null,1,0,null,null,0]
[null,null,null,null,1,0,null,null,0]
[null,null,null,null,1,0,null,null,0]
[null,null,null,null,1,0,null,null,0]
[null,null,null,null,1,0,null,null,0]
[null,null,null,null,1,0,null,null,0]
[null,null,null,null,1,0,null,null,0]
[null,null,null,null,1,0,null,null,0]
[null,null,null,null,1,0,null,null,0]
[null,null,null,null,1,0,null,null,0]
[null,null,null,null,1,0,null,null,0]
[null,null,null,null,1,0,null,null,0]
[null,null,null,null,1,0,null,null,0]
[null,null,null,null,1,0,null,null,0]
[null,null,null,null,1,0,null,null,0]
[null,null,null,null,1,0,null,null,0]
[null,null,null,null,1,0,null,null,0]
[null,null,null,null,1,0,null,null,0]
[null,null,null,null,1,0,null,null,0]
[null,null,null,null,1,0,null,null,0]
[null,null,null,null,1,0,null,null,0]
[null,null,null,null,1,0,null,null,0]
[null,null,null,null,1,0,null,null,0]
[null,null,null,null,1,0,null,null,0]
[null,null,null,null,1,0,null,null,0]
[null,null,null,null,1,0,null,null,0]
[null,null,null,null,1,0,null,null,0]
[null,null,null,null,1,0,null,null,0]
[null,null,null,null,1,0,null,null,0]
[null,null,null,null,1,0,null,null,0]
[null,null,null,null,1,0,null,null,0]
[null,null,null,null,1,0,null,null,0]
[null,null,null,null,1,0,null,null,0]
[null,null,null,null,1,0,null,null,0]
[null,null,null,null,1,0,null,null,0]
[null,null,null,null,1,0,null,null,0]
[null,null,null,null,1,0,null,null,0]
[null,null,null,null,1,0,null,null,0]
[null,null,null,null,1,0,null,null,0]
[null,null,null,null,1,0,null,null,0]
[null,null,null,null,1,0,null,null,0]
[null,null,null,null,1,0,null,null,0]
[null,null,null,null,1,0,null,null,0]
[null,null,null,null,1,0,null,null,0]
[null,null,null,null,1,0,null,null,0]
[null,null,null,null,1,0,null,null,0]
[null,null,null,null,1,0,null,null,0]
[null,null,null,null,1,0,null,null,0]
[null,null,null,null,1,{"$f":"D2615*E2615*4.5","v":0},null,null,{"$f":"D2615*E2615","v":0}]
[null,null,null,null,1,0,null,null,0]
[null,null,null,null,1,0,null,null,0]
[null,null,null,null,1,0,null,null,0]
[null,null,null,null,1,0,null,null,0]
[null,null,null,null,1,0,null,null,0]
[null,null,null,null,1,0,null,null,0]
[null,null,null,null,1,0,null,null,0]
[null,null,null,null,1,0,null,null,0]
[null,null,null,null,1,0,null,null,0]
[null,null,null,null,1,0,null,null,0]
[null,null,null,null,1,0,null,null,0]
[null,null,null,null,1,0,null,null,0]
[null,null,null,null,1,0,null,null,0]
[null,null,null,null,1,0,null,null,0]
[null,null,null,null,1,0,null,null,0]
[null,null,null,null,1,0,null,null,0]
[null,null,null,null,1,0,null,null,0]
[null,null,null,null,1,0,null,null,0]
[null,null,null,null,1,0,null,null,0]
[null,null,null,null,1,0,null,null,0]
[null,null,null,null,1,0,null,null,0]
[null,null,null,null,1,0,null,null,0]
[null,null,null,null,1,0,null,null,0]
[null,null,null,null,1,0,null,null,0]
[null,null,null,null,1,0,null,null,0]
[null,null,null,null,1,0,null,null,0]
[null,null,null,null,1,0,null,null,0]
[null,null,null,null,1,0,null,null,0]
[null,null,null,null,1,0,null,null,0]
[null,null,null,null,1,0,null,null,0]
[null,null,null,null,1,0,null,null,0]
[null,null,null,null,1,0,null,null,0]
[null,null,null,null,1,0,null,null,0]
[null,null,null,null,1,0,null,null,0]
[null,null,null,null,1,0,null,null,0]
[null,null,null,null,1,0,null,null,0]
[null,null,null,null,1,0,null,null,0]
[null,null,null,null,1,0,null,null,0]
[null,null,null,null,1,0,null,null,0]
[null,null,null,null,1,0,null,null,0]
[null,null,null,null,1,0,null,null,0]
[null,null,null,null,1,0,null,null,0]
[null,null,null,null,1,0,null,null,0]
[null,null,null,null,1,0,null,null,0]
[null,null,null,null,1,0,null,null,0]
[null,null,null,null,1,0,null,null,0]
[null,null,null,null,1,0,null,null,0]
[null,null,null,null,1,0,null,null,0]
[null,null,null,null,1,0,null,null,0]
[null,null,null,null,1,0,null,null,0]
[null,null,null,null,1,0,null,null,0]
[null,null,null,null,1,0,null,null,0]
[null,null,null,null,1,0,null,null,0]
[null,null,null,null,1,0,null,null,0]
[null,null,null,null,1,0,null,null,0]
[null,null,null,null,1,0,null,null,0]
[null,null,null,null,1,0,null,null,0]
[null,null,null,null,1,0,null,null,0]
[null,null,null,null,1,0,null,null,0]
[null,null,null,null,1,0,null,null,0]
[null,null,null,null,1,0,null,null,0]
[null,null,null,null,1,0,null,null,0]
[null,null,null,null,1,0,null,null,0]
[null,null,null,null,1,{"$f":"D2679*E2679*4.5","v":0},null,null,{"$f":"D2679*E2679","v":0}]
[null,null,null,null,1,0,null,null,0]
[null,null,null,null,1,0,null,null,0]
[null,null,null,null,1,0,null,null,0]
[null,null,null,null,1,0,null,null,0]
[null,null,null,null,1,0,null,null,0]
[null,null,null,null,1,0,null,null,0]
[null,null,null,null,1,0,null,null,0]
[null,null,null,null,1,0,null,null,0]
[null,null,null,null,1,0,null,null,0]
[null,null,null,null,1,0,null,null,0]
[null,null,null,null,1,0,null,null,0]
[null,null,null,null,1,0,null,null,0]
[null,null,null,null,1,0,null,null,0]
[null,null,null,null,1,0,null,null,0]
[null,null,null,null,1,0,null,null,0]
[null,null,null,null,1,0,null,null,0]
[null,null,null,null,1,0,null,null,0]
[null,null,null,null,1,0,null,null,0]
[null,null,null,null,1,0,null,null,0]
[null,null,null,null,1,0,null,null,0]
[null,null,null,null,1,0,null,null,0]
[null,null,null,null,1,0,null,null,0]
[null,null,null,null,1,0,null,null,0]
[null,null,null,null,1,0,null,null,0]
[null,null,null,null,1,0,null,null,0]
[null,null,null,null,1,0,null,null,0]
[null,null,null,null,1,0,null,null,0]
[null,null,null,null,1,0,null,null,0]
[null,null,null,null,1,0,null,null,0]
[null,null,null,null,1,0,null,null,0]
[null,null,null,null,1,0,null,null,0]
[null,null,null,null,1,0,null,null,0]
[null,null,null,null,1,0,null,null,0]
[null,null,null,null,1,0,null,null,0]
[null,null,null,null,1,0,null,null,0]
[null,null,null,null,1,0,null,null,0]
[null,null,null,null,1,0,null,null,0]
[null,null,null,null,1,0,null,null,0]
[null,null,null,null,1,0,null,null,0]
[null,null,null,null,1,0,null,null,0]
[null,null,null,null,1,0,null,null,0]
[null,null,null,null,1,0,null,null,0]
[null,null,null,null,1,0,null,null,0]
[null,null,null,null,1,0,null,null,0]
[null,null,null,null,1,0,null,null,0]
[null,null,null,null,1,0,null,null,0]
[null,null,null,null,1,0,null,null,0]
[null,null,null,null,1,0,null,null,0]
[null,null,null,null,1,0,null,null,0]
[null,null,null,null,1,0,null,null,0]
[null,null,null,null,1,0,null,null,0]
[null,null,null,null,1,0,null,null,0]
[null,null,null,null,1,0,null,null,0]
[null,null,null,null,1,0,null,null,0]
[null,null,null,null,1,0,null,null,0]
[null,null,null,null,1,0,null,null,0]
[null,null,null,null,1,0,null,null,0]
[null,null,null,null,1,0,null,null,0]
[null,null,null,null,1,0,null,null,0]
[null,null,null,null,1,0,null,null,0]
[null,null,null,null,1,0,null,null,0]
[null,null,null,null,1,0,null,null,0]
[null,null,null,null,1,0,null,null,0]
[null,null,null,null,1,{"$f":"D2743*E2743*4.5","v":0},null,null,{"$f":"D2743*E2743","v":0}]
[null,null,null,null,1,0,null,null,0]
[null,null,null,null,1,0,null,null,0]
[null,null,null,null,1,0,null,null,0]
[null,null,null,null,1,0,null,null,0]
[null,null,null,null,1,0,null,null,0]
[null,null,null,null,1,0,null,null,0]
[null,null,null,null,1,0,null,null,0]
[null,null,null,null,1,0,null,null,0]
[null,null,null,null,1,0,null,null,0]
[null,null,null,null,1,0,null,null,0]
[null,null,null,null,1,0,null,null,0]
[null,null,null,null,1,0,null,null,0]
[null,null,null,null,1,0,null,null,0]
[null,null,null,null,1,0,null,null,0]
[null,null,null,null,1,0,null,null,0]
[null,null,null,null,1,0,null,null,0]
[null,null,null,null,1,0,null,null,0]
[null,null,null,null,1,0,null,null,0]
[null,null,null,null,1,0,null,null,0]
[null,null,null,null,1,0,null,null,0]
[null,null,null,null,1,0,null,null,0]
[null,null,null,null,1,0,null,null,0]
[null,null,null,null,1,0,null,null,0]
[null,null,null,null,1,0,null,null,0]
[null,null,null,null,1,0,null,null,0]
[null,null,null,null,1,0,null,null,0]
[null,null,null,null,1,0,null,null,0]
[null,null,null,null,1,0,null,null,0]
[null,null,null,null,1,0,null,null,0]
[null,null,null,null,1,0,null,null,0]
[null,null,null,null,1,0,null,null,0]
[null,null,null,null,1,0,null,null,0]
[null,null,null,null,1,0,null,null,0]
[null,null,null,null,1,0,null,null,0]
[null,null,null,null,1,0,null,null,0]
[null,null,null,null,1,0,null,null,0]
[null,null,null,null,1,0,null,null,0]
[null,null,null,null,1,0,null,null,0]
[null,null,null,null,1,0,null,null,0]
[null,null,null,null,1,0,null,null,0]
[null,null,null,null,1,0,null,null,0]
[null,null,null,null,1,0,null,null,0]
[null,null,null,null,1,0,null,null,0]
[null,null,null,null,1,0,null,null,0]
[null,null,null,null,1,0,null,null,0]
[null,null,null,null,1,0,null,null,0]
[null,null,null,null,1,0,null,null,0]
[null,null,null,null,1,0,null,null,0]
[null,null,null,null,1,0,null,null,0]
[null,null,null,null,1,0,null,null,0]
[null,null,null,null,1,0,null,null,0]
[null,null,null,null,1,0,null,null,0]
[null,null,null,null,1,0,null,null,0]
[null,null,null,null,1,0,null,null,0]
[null,null,null,null,1,0,null,null,0]
[null,null,null,null,1,0,null,null,0]
[null,null,null,null,1,0,null,null,0]
[null,null,null,null,1,0,null,null,0]
[null,null,null,null,1,0,null,null,0]
[null,null,null,null,1,0,null,null,0]
[null,null,null,null,1,0,null,null,0]
[null,null,null,null,1,0,null,null,0]
[null,null,null,null,1,0,null,null,0]
[null,null,null,null,1,{"$f":"D2807*E2807*4.5","v":0},null,null,{"$f":"D2807*E2807","v":0}]
[null,null,null,null,1,0,null,null,0]
[null,null,null,null,1,0,null,null,0]
[null,null,null,null,1,0,null,null,0]
[null,null,null,null,1,0,null,null,0]
[null,null,null,null,1,0,null,null,0]
[null,null,null,null,1,0,null,null,0]
[null,null,null,null,1,0,null,null,0]
[null,null,null,null,1,0,null,null,0]
[null,null,null,null,1,0,null,null,0]
[null,null,null,null,1,0,null,null,0]
[null,null,null,null,1,0,null,null,0]
[null,null,null,null,1,0,null,null,0]
[null,null,null,null,1,0,null,null,0]
[null,null,null,null,1,0,null,null,0]
[null,null,null,null,1,0,null,null,0]
[null,null,null,null,1,0,null,null,0]
[null,null,null,null,1,0,null,null,0]
[null,null,null,null,1,0,null,null,0]
[null,null,null,null,1,0,null,null,0]
[null,null,null,null,1,0,null,null,0]
[null,null,null,null,1,0,null,null,0]
[null,null,null,null,1,0,null,null,0]
[null,null,null,null,1,0,null,null,0]
[null,null,null,null,1,0,null,null,0]
[null,null,null,null,1,0,null,null,0]
[null,null,null,null,1,0,null,null,0]
[null,null,null,null,1,0,null,null,0]
[null,null,null,null,1,0,null,null,0]
[null,null,null,null,1,0,null,null,0]
[null,null,null,null,1,0,null,null,0]
[null,null,null,null,1,0,null,null,0]
[null,null,null,null,1,0,null,null,0]
[null,null,null,null,1,0,null,null,0]
[null,null,null,null,1,0,null,null,0]
[null,null,null,null,1,0,null,null,0]
[null,null,null,null,1,0,null,null,0]
[null,null,null,null,1,0,null,null,0]
[null,null,null,null,1,0,null,null,0]
[null,null,null,null,1,0,null,null,0]
[null,null,null,null,1,0,null,null,0]
[null,null,null,null,1,0,null,null,0]
[null,null,null,null,1,0,null,null,0]
[null,null,null,null,1,0,null,null,0]
[null,null,null,null,1,0,null,null,0]
[null,null,null,null,1,0,null,null,0]
[null,null,null,null,1,0,null,null,0]
[null,null,null,null,1,0,null,null,0]
[null,null,null,null,1,0,null,null,0]
[null,null,null,null,1,0,null,null,0]
[null,null,null,null,1,0,null,null,0]
[null,null,null,null,1,0,null,null,0]
[null,null,null,null,1,0,null,null,0]
[null,null,null,null,1,0,null,null,0]
[null,null,null,null,1,0,null,null,0]
[null,null,null,null,1,0,null,null,0]
[null,null,null,null,1,0,null,null,0]
[null,null,null,null,1,0,null,null,0]
[null,null,null,null,1,0,null,null,0]
[null,null,null,null,1,0,null,null,0]
[null,null,null,null,1,0,null,null,0]
[null,null,null,null,1,0,null,null,0]
[null,null,null,null,1,0,null,null,0]
[null,null,null,null,1,0,null,null,0]
[null,null,null,null,1,{"$f":"D2871*E2871*4.5","v":0},null,null,{"$f":"D2871*E2871","v":0}]
[null,null,null,null,1,0,null,null,0]
[null,null,null,null,1,0,null,null,0]
[null,null,null,null,1,0,null,null,0]
[null,null,null,null,1,0,null,null,0]
[null,null,null,null,1,0,null,null,0]
[null,null,null,null,1,0,null,null,0]
[null,null,null,null,1,0,null,null,0]
[null,null,null,null,1,0,null,null,0]
[null,null,null,null,1,0,null,null,0]
[null,null,null,null,1,0,null,null,0]
[null,null,null,null,1,0,null,null,0]
[null,null,null,null,1,0,null,null,0]
[null,null,null,null,1,0,null,null,0]
[null,null,null,null,1,0,null,null,0]
[null,null,null,null,1,0,null,null,0]
[null,null,null,null,1,0,null,null,0]
[null,null,null,null,1,0,null,null,0]
[null,null,null,null,1,0,null,null,0]
[null,null,null,null,1,0,null,null,0]
[null,null,null,null,1,0,null,null,0]
[null,null,null,null,1,0,null,null,0]
[null,null,null,null,1,0,null,null,0]
[null,null,null,null,1,0,null,null,0]
[null,null,null,null,1,0,null,null,0]
[null,null,null,null,1,0,null,null,0]
[null,null,null,null,1,0,null,null,0]
[null,null,null,null,1,0,null,null,0]
[null,null,null,null,1,0,null,null,0]
[null,null,null,null,1,0,null,null,0]
[null,null,null,null,1,0,null,null,0]
[null,null,null,null,1,0,null,null,0]
[null,null,null,null,1,0,null,null,0]
[null,null,null,null,1,0,null,null,0]
[null,null,null,null,1,0,null,null,0]
[null,null,null,null,1,0,null,null,0]
[null,null,null,null,1,0,null,null,0]
[null,null,null,null,1,0,null,null,0]
[null,null,null,null,1,0,null,null,0]
[null,null,null,null,1,0,null,null,0]
[null,null,null,null,1,0,null,null,0]
[null,null,null,null,1,0,null,null,0]
[null,null,null,null,1,0,null,null,0]
[null,null,null,null,1,0,null,null,0]
[null,null,null,null,1,0,null,null,0]
[null,null,null,null,1,0,null,null,0]
[null,null,null,null,1,0,null,null,0]
[null,null,null,null,1,0,null,null,0]
[null,null,null,null,1,0,null,null,0]
[null,null,null,null,1,0,null,null,0]
[null,null,null,null,1,0,null,null,0]
[null,null,null,null,1,0,null,null,0]
[null,null,null,null,1,0,null,null,0]
[null,null,null,null,1,0,null,null,0]
[null,null,null,null,1,0,null,null,0]
[null,null,null,null,1,0,null,null,0]
[null,null,null,null,1,0,null,null,0]
[null,null,null,null,1,0,null,null,0]
[null,null,null,null,1,0,null,null,0]
[null,null,null,null,1,0,null,null,0]
[null,null,null,null,1,0,null,null,0]
[null,null,null,null,1,0,null,null,0]
[null,null,null,null,1,0,null,null,0]
[null,null,null,null,1,0,null,null,0]
[null,null,null,null,1,{"$f":"D2935*E2935*4.5","v":0},null,null,{"$f":"D2935*E2935","v":0}]
[null,null,null,null,1,0,null,null,0]
[null,null,null,null,1,0,null,null,0]
[null,null,null,null,1,0,null,null,0]
[null,null,null,null,1,0,null,null,0]
[null,null,null,null,1,0,null,null,0]
[null,null,null,null,1,0,null,null,0]
[null,null,null,null,1,0,null,null,0]
[null,null,null,null,1,0,null,null,0]
[null,null,null,null,1,0,null,null,0]
[null,null,null,null,1,0,null,null,0]
[null,null,null,null,1,0,null,null,0]
[null,null,null,null,1,0,null,null,0]
[null,null,null,null,1,0,null,null,0]
[null,null,null,null,1,0,null,null,0]
[null,null,null,null,1,0,null,null,0]
[null,null,null,null,1,0,null,null,0]
[null,null,null,null,1,0,null,null,0]
[null,null,null,null,1,0,null,null,0]
[null,null,null,null,1,0,null,null,0]
[null,null,null,null,1,0,null,null,0]
[null,null,null,null,1,0,null,null,0]
[null,null,null,null,1,0,null,null,0]
[null,null,null,null,1,0,null,null,0]
[null,null,null,null,1,0,null,null,0]
[null,null,null,null,1,0,null,null,0]
[null,null,null,null,1,0,null,null,0]
[null,null,null,null,1,0,null,null,0]
[null,null,null,null,1,0,null,null,0]
[null,null,null,null,1,0,null,null,0]
[null,null,null,null,1,0,null,null,0]
[null,null,null,null,1,0,null,null,0]
[null,null,null,null,1,0,null,null,0]
[null,null,null,null,1,0,null,null,0]
[null,null,null,null,1,0,null,null,0]
[null,null,null,null,1,0,null,null,0]
[null,null,null,null,1,0,null,null,0]
[null,null,null,null,1,0,null,null,0]
[null,null,null,null,1,0,null,null,0]
[null,null,null,null,1,0,null,null,0]
[null,null,null,null,1,0,null,null,0]
[null,null,null,null,1,0,null,null,0]
[null,null,null,null,1,0,null,null,0]
[null,null,null,null,1,0,null,null,0]
[null,null,null,null,1,0,null,null,0]
[null,null,null,null,1,0,null,null,0]
[null,null,null,null,1,0,null,null,0]
[null,null,null,null,1,0,null,null,0]
[null,null,null,null,1,0,null,null,0]
[null,null,null,null,1,0,null,null,0]
[null,null,null,null,1,0,null,null,0]
[null,null,null,null,1,0,null,null,0]
[null,null,null,null,1,0,null,null,0]
[null,null,null,null,1,0,null,null,0]
[null,null,null,null,1,0,null,null,0]
[null,null,null,null,1,0,null,null,0]
[null,null,null,null,1,0,null,null,0]
[null,null,null,null,1,0,null,null,0]
[null,null,null,null,1,0,null,null,0]
[null,null,null,null,1,0,null,null,0]
[null,null,null,null,1,0,null,null,0]
[null,null,null,null,1,0,null,null,0]
[null,null,null,null,1,0,null,null,0]
[null,null,null,null,1,0,null,null,0]
[null,null,null,null,1,{"$f":"D2999*E2999*4.5","v":0},null,null,{"$f":"D2999*E2999","v":0}]
[null,null,null,null,1,{"$f":"D3000*E3000*4.5","v":0},null,null,{"$f":"D3000*E3000","v":0}]

{"sheet":"3 - Summary","index":3,"n_rows":35,"n_cols":37,"rows_kept":35,"cut":false,"hidden":false,"merged":[[4,0,4,33],[19,29,19,33],[13,23,13,25],[13,29,13,33],[10,22,10,25],[10,29,10,33],[17,29,17,33],[10,16,10,18],[11,16,11,18],[11,23,11,25],[8,1,8,33],[21,13,21,15],[22,13,22,15],[23,13,23,15],[30,2,30,16],[11,29,11,33],[15,23,15,25],[15,29,15,33],[17,23,17,25],[20,13,20,15],[29,18,29,27],[30,18,30,27],[21,29,21,33],[23,29,23,33],[29,2,29,16]]}
[]
[]
[]
[]
["Total ABP Service Charge Refund Calculation"]
[]
["Total Service Charge Refund Calculation"]
[]
[null,"The following table show “zero” refund as ABP asks that you consider the consequences of requesting a refund and think about leaving all or some of the refundable Service Charge with ABP.  For further information on how your Service Charge helps the beef cattle industry, please press the “Info” buttons.   To change the amounts, please check the appropriate boxes and specify the amounts you wish to leave with ABP."]
[]
[null,null,null,null,null,null,null,null,null,null,null,null,null,null,null,null,"# Head",null,null,null,null,null,"   / Head",null,null,null,null,null,null,"Amount"]
["Number of head available for a refund at $2.00",null,null,null,null,null,null,null,null,null,null,null,null,null,null,null,{"$f":"'2 - Refund Details'!I11","v":0},null,null,null,null,null,"@",2,null,null,null,"=",null,{"$f":"SummaryNoHead*X12","v":0}]
[]
[null,null,"Less: Dealer dealer remittance fee Paid by ABP",null,null,null,null,null,null,null,null,null,null,null,null,null,null,null,null,null,null,null,"@",0.05,null,null,null,"=",null,{"$f":"IF(AK14=TRUE,SummaryNoHead*X14,0)","v":0},null,null,null,null,null,null,false]
[]
[null,null,"Less: Contribution to ABP",null,null,null,null,null,null,null,null,null,null,null,null,null,null,null,null,null,null,null,"@",0,null,null,null,"=",null,{"$f":"SummaryNoHead*SummaryContributionRateToABP","v":0},null,null,null,null,null,null,false]
[]
[null,null,"Less: Contribution to CCA",null,null,null,null,null,null,null,null,null,null,null,null,null,null,null,null,null,null,null,"@",0.53,null,null,null,"=",null,{"$f":"IF(AK18=TRUE,Q12*X18,0)","v":0},null,null,null,null,null,null,false]
[]
[null,null,null,null,null,null,null,null,null,null,null,null,null,null,null,null,null,null,null,null,null,null,null,null,null,null,null,"Payout before GST",null,{"$f":"AD12-AD14-AD16-AD18","v":0}]
[]
[null,null,null,null,null,null,null,null,null,null,null,null,null,null,null,null,null,null,null,null,null,null,null,null,null,null,null,"Add GST",null,{"$f":"AD20*0.05","v":0}]
[]
[null,null,null,null,null,null,null,null,null,null,null,null,null,null,null,null,null,null,null,null,null,null,null,null,null,null,null,"= Calculated Refund Amount",null,{"$f":"AD20+AD22","v":0}]
[null,null,"Certification"]
[null,null,"I hereby certify that the ABP Service Charge was paid by the producer requesting"]
[null,null," the refund and was not passed on to another person for payment, and that"]
[null,null," the copies of the documentation supporting this request for a refund"]
[null,null," are true copies of the original documents."]
[]
[null,null,"Requested By",null,null,null,null,null,null,null,null,null,null,null,null,null,null,null,"Date Certified"]
[]
[]
["The above information is collected by ABP for the purpose of the Alberta Beef Producers Commission Regulation,"]
["and is governed by the Protection of Personal Information Act and the ABP Personal Information Protection Policy. "]

{"sheet":"Instructions","index":4,"n_rows":0,"n_cols":0,"rows_kept":0,"cut":false,"hidden":false,"merged":[[43,1,43,11]]}

{"sheet":"References","index":5,"n_rows":61,"n_cols":17,"rows_kept":61,"cut":false,"hidden":true,"merged":[[38,2,38,3],[38,4,38,5]]}
[]
[null,"Province",null,"MaxRow"]
[null,"AB",null,500,null,null,null,"Test Mode",false,null,"Comments Region"]
[null,"BC",null,null,null,null,null,"Protect Mode","ON",null,"Instructions","Instructions"]
[null,"SK",null,null,null,null,null,null,null,null,"Info01","1 - Info"]
[null,"MN",null,null,null,null,null,"CurRefundRow",14,null,"Info02","1 - Info"]
[null,"ON",null,null,null,null,null,null,null,null,"InfoRefundRequest","1 - Info"]
[null,null,null,null,null,null,null,"CurRefundCol",1]
[]
[true,null,null,null,null,null,null,"RefundPeriod",2,null,"Show Page 1 Completion","ON","(on Page 2)"]
[false]
[null,null,null,null,null,null,null,"Certified",false,null,"Count Categories Checked",0]
[]
[null,null,null,null,null,null,null,"AllowClose",true,null,"FileName","C:\\Data\\Clients\\ABP\\Refunds\\000 Refund Request Form\\Refund_Template_Master_R6.xlsm",null,null,null,null,"C:\\Data\\Clients\\ABP\\Refunds\\00 Refund Request Form\\Refund_Template_Master_R3 From Web.xlsm"]
[null,"Range Name","Required"]
[null,"NameOfProducer",true,null,null,null,null,"Show Working Columns",false]
[null,"FirstName",true]
[null,"LastName",true,null,null,null,null,"Refund Template Version",3]
[null,"Address",true]
[null,"Town",true,null,null,null,null,"Refund Template Date","2023-07-05"]
[null,"PostalCode",true]
[null,"Phone",true]
[null,"eMail",true]
[null,"County",true]
[null,"OperatingCounty",true]
[null,"DateOfRequest",true]
[]
[null,"ProducerCategory","Value"]
[null,"CategoryCowCalfProducer",false]
[null,"CategoryFeedlot",false]
[null,"CategoryLicencedDealer",false]
[null,"CategoryBackgrounder",false]
[null,"CategoryCustomFeedlot",false,null,null,"<- Add Rows removed from \"2 - Refund Details\""]
[null,"CategoryAuctionMarket",false,null,null,"    Pre-populated this sheet with 3000 rows, totals at top"]
[null,"CategoryOther",false]
[]
[]
[]
[null,null,"Requested Date",null,"Refund Request for Dates"]
[null,"Period","Req From Date","Req To Date","From","To"]
[null,null,"2023-02-01","2023-07-31","2023-01-01","2023-06-30"]
[null,null,"2023-08-01","2024-01-31","2023-07-01","2023-12-31"]
[null,null,"2024-02-01","2024-07-31","2024-01-01","2024-06-30",null,null,null,null,null,null,null,null,null,null,"Refund requests for the period January 1 until June 30 of the current calendar year are due "]
[null,null,"2024-08-01","2025-01-31","2024-07-01","2024-12-31",null,null,null,null,null,null,null,null,null,null,"in the ABP office by July 31 for processing in August and will be paid by October 31.  "]
[null,null,"2025-02-01","2025-07-31","2025-01-01","2025-06-30",null,null,null,null,null,null,null,null,null,null,"Refund request for the period July 1 until December 31 of the current calendar year are due"]
[null,null,"2025-08-01","2026-01-31","2025-07-01","2025-12-31",null,null,null,null,null,null,null,null,null,null,"in the ABP office by January 31, for processing in February and will be paid by April 30."]
[null,null,"2026-02-01","2026-07-31","2026-01-01","2026-06-30"]
[null,null,"2026-08-01","2027-01-31","2026-07-01","2026-12-31"]
[null,null,"2027-02-01","2027-07-31","2027-01-01","2027-06-30"]
[null,null,"2027-08-01","2028-01-31","2027-07-01","2027-12-31"]
[null,null,"2028-02-01","2028-07-31","2028-01-01","2028-06-30"]
[null,null,"2028-08-01","2029-01-31","2028-07-01","2028-12-31"]
[null,null,"2029-02-01","2029-07-31","2029-01-01","2029-06-30"]
[null,null,"2029-08-01","2030-01-31","2029-07-01","2029-12-31"]
[null,null,"2030-02-01","2030-07-31","2030-01-01","2030-06-30"]
[null,null,"2030-08-01","2031-01-31","2030-07-01","2030-12-31"]
[]
[]
[]
[]
[null,null,null,null,null,"Date","2024-01-01"," (Date of Request)"]